account_party,address,code,date,document_number,expense_code_name,expense_code_name_short,id,party_cell,party_cell_code,party_cell_geoobject,purpose,source_bank_account_number,source_bank_account_type,sum,target_legal_personality,target_legal_personality_code,target_type
РПЛ,"Київ, вулиця Миколи Лєскова, 9",70,2016-12-29,Б/н,Банківські послуги,Інші витрати,389922,Центральний офіс,37279703,Україна,Комісія за послуги,26000368825,current,200.00,"АТ ""Райффайзен банк Аваль""",14305909,юридична особа
РПЛ,"Київська обл., Яготинський район, Яготин",80,2016-12-28,1441,"Транспортні послуги (квитки, пасажирські перевезення і т.д.)","Транспортні послуги (квитки, пасажирські перевезення і т.д.)",389921,Центральний офіс,37279703,Україна,Транспортні послуги,26000368825,current,2560.00,"ТОВ ""Дженерал Транс Альянс Логистик""",39174532,юридична особа
РПЛ,"Київ, вулиця Багговутівська, 26",62,2016-12-23,1438,Сплата ЄСВ,Податкові платежі,390131,Центральний офіс,37279703,Україна,Єдиний соціальний внесок,26002532154,state,136.00,ДПІ у Шевченківському районі у м. Києві,38728711,юридична особа
РПЛ,"Київ, вулиця Академіка Туполєва, 28А",61,2016-12-23,1440,Військовий збір,Податкові платежі,390130,Центральний офіс,37279703,Україна,Військовий збір,26002532154,state,9.28,УДКСУ у Шевченківському районі м. Києва,37995466,юридична особа
РПЛ,,84,2016-12-23,1,"Заробітна плата, премії","Заробітна плата, лікарняні, вагітності, відрядження, компенсації",390009,Центральний офіс,37279703,Україна,Заробітна плата,26002532154,state,6322.91,Кіріченко Артем Андрійович,,фізична особа
РПЛ,"Одеська область, Одеса",84,2016-12-23,1,"Заробітна плата, премії","Заробітна плата, лікарняні, вагітності, відрядження, компенсації",390008,Центральний офіс,37279703,Україна,Заробітна плата,26002532154,state,6791.27,Лисейко Оксана Вікторівна,,фізична особа
РПЛ,"Одеська область, Одеса",84,2016-12-23,1,"Заробітна плата, премії","Заробітна плата, лікарняні, вагітності, відрядження, компенсації",390007,Центральний офіс,37279703,Україна,Заробітна плата,26002532154,state,6791.27,Лисейко Ігор Федорович,,фізична особа
РПЛ,"Одеська область, Одеса",84,2016-12-23,1,"Заробітна плата, премії","Заробітна плата, лікарняні, вагітності, відрядження, компенсації",390006,Центральний офіс,37279703,Україна,Заробітна плата,26002532154,state,6791.27,Щербініна Валентина Леонідівна,,фізична особа
РПЛ,"Одеська область, Тарутинський район, Тарутине",84,2016-12-23,1,"Заробітна плата, премії","Заробітна плата, лікарняні, вагітності, відрядження, компенсації",390005,Центральний офіс,37279703,Україна,Заробітна плата,26002532154,state,6791.27,Кисса Святослав Вікторович,,фізична особа
РПЛ,"Миколаївська область, Миколаїв",84,2016-12-23,1,"Заробітна плата, премії","Заробітна плата, лікарняні, вагітності, відрядження, компенсації",390004,Центральний офіс,37279703,Україна,Заробітна плата,26002532154,state,7728.00,Алєксєєв Антон Леонідович,,фізична особа
РПЛ,"Луганська область, Борівське",84,2016-12-23,1,"Заробітна плата, премії","Заробітна плата, лікарняні, вагітності, відрядження, компенсації",390003,Центральний офіс,37279703,Україна,Заробітна плата,26002532154,state,7728.00,Троценко Ольга Анатоліївна,,фізична особа
РПЛ,"Луганська область, Сєвєродонецьк",84,2016-12-23,1,"Заробітна плата, премії","Заробітна плата, лікарняні, вагітності, відрядження, компенсації",390002,Центральний офіс,37279703,Україна,Заробітна плата,26002532154,state,7728.00,Руденко Ганна Володимирівна,,фізична особа
РПЛ,"Луганська область, Сєвєродонецьк",84,2016-12-23,1,"Заробітна плата, премії","Заробітна плата, лікарняні, вагітності, відрядження, компенсації",390001,Центральний офіс,37279703,Україна,Заробітна плата,26002532154,state,7728.00,Бублик Олег Михайлович,,фізична особа
РПЛ,м. Кропивницький,84,2016-12-23,1,"Заробітна плата, премії","Заробітна плата, лікарняні, вагітності, відрядження, компенсації",390000,Центральний офіс,37279703,Україна,Заробітна плата,26002532154,state,7025.45,Бойко Сергій Вікторович,,фізична особа
РПЛ,м. Кропивницький,84,2016-12-23,1,"Заробітна плата, премії","Заробітна плата, лікарняні, вагітності, відрядження, компенсації",389999,Центральний офіс,37279703,Україна,Заробітна плата,26002532154,state,7025.45,Кашуба Олег Валерійович,,фізична особа
РПЛ,"Кіровоградська область, Олександрія",84,2016-12-23,1,"Заробітна плата, премії","Заробітна плата, лікарняні, вагітності, відрядження, компенсації",389998,Центральний офіс,37279703,Україна,Заробітна плата,26002532154,state,7025.45,Осіпова Марина Валеріївна,,фізична особа
РПЛ,"Львівська область, Львів",84,2016-12-23,1,"Заробітна плата, премії","Заробітна плата, лікарняні, вагітності, відрядження, компенсації",389997,Центральний офіс,37279703,Україна,Заробітна плата,26002532154,state,7025.45,Басараб Микола Іванович,,фізична особа
РПЛ,"Івано-Франківська область, Івано-Франківськ",84,2016-12-23,1,"Заробітна плата, премії","Заробітна плата, лікарняні, вагітності, відрядження, компенсації",389996,Центральний офіс,37279703,Україна,Заробітна плата,26002532154,state,7025.45,Дмитришина Ірина Юріївна,,фізична особа
РПЛ,"Івано-Франківська область, Калуський район, Вістова",84,2016-12-23,1,"Заробітна плата, премії","Заробітна плата, лікарняні, вагітності, відрядження, компенсації",389995,Центральний офіс,37279703,Україна,Заробітна плата,26002532154,state,7025.45,Семчук Ірина Миколаївна,,фізична особа
РПЛ,"Запорізька область, Запоріжжя",84,2016-12-23,1,"Заробітна плата, премії","Заробітна плата, лікарняні, вагітності, відрядження, компенсації",389994,Центральний офіс,37279703,Україна,Заробітна плата,26002532154,state,7259.64,Надолинський Ростислав Федорович,,фізична особа
РПЛ,"Запорізька область, Запоріжжя",84,2016-12-23,1,"Заробітна плата, премії","Заробітна плата, лікарняні, вагітності, відрядження, компенсації",389993,Центральний офіс,37279703,Україна,Заробітна плата,26002532154,state,7962.19,Дертамова Ірина Станіславівна,,фізична особа
РПЛ,"Запорізька область, Запоріжжя",84,2016-12-23,1,"Заробітна плата, премії","Заробітна плата, лікарняні, вагітності, відрядження, компенсації",389992,Центральний офіс,37279703,Україна,Заробітна плата,26002532154,state,7962.19,Хохлов Юрій Станіславович,,фізична особа
РПЛ,"Донецька область, Донецьк",84,2016-12-23,1,"Заробітна плата, премії","Заробітна плата, лікарняні, вагітності, відрядження, компенсації",389991,Центральний офіс,37279703,Україна,Заробітна плата,26002532154,state,7025.45,Верзілов Дмитро Олегович,,фізична особа
РПЛ,"Донецька область, Костянтинівський район, Кіндратівка",84,2016-12-23,1,"Заробітна плата, премії","Заробітна плата, лікарняні, вагітності, відрядження, компенсації",389990,Центральний офіс,37279703,Україна,Заробітна плата,26002532154,state,7493.81,Деревʼянко Олександра Олександрівна,,фізична особа
РПЛ,"Донецька область, Слов'янський район, Слов'янськ",84,2016-12-23,1,"Заробітна плата, премії","Заробітна плата, лікарняні, вагітності, відрядження, компенсації",389989,Центральний офіс,37279703,Україна,Заробітна плата,26002532154,state,3746.91,Нечипоренко Михайло Костянтинович,,фізична особа
РПЛ,"Волинська область, Рожищенський район, Озденіж",84,2016-12-23,1,"Заробітна плата, премії","Заробітна плата, лікарняні, вагітності, відрядження, компенсації",389988,Центральний офіс,37279703,Україна,Заробітна плата,26002532154,state,6791.27,Туз Святослав Олександрович,,фізична особа
РПЛ,"Волинська область, Луцьк",84,2016-12-23,1,"Заробітна плата, премії","Заробітна плата, лікарняні, вагітності, відрядження, компенсації",389987,Центральний офіс,37279703,Україна,Заробітна плата,26002532154,state,6791.27,Семчук Юрій Анатолійович,,фізична особа
РПЛ,"Волинська область, Рожищенський район, Копачівка",84,2016-12-23,1,"Заробітна плата, премії","Заробітна плата, лікарняні, вагітності, відрядження, компенсації",389986,Центральний офіс,37279703,Україна,Заробітна плата,26002532154,state,6791.27,Воробйова Жанна Миколаївна,,фізична особа
РПЛ,"Вінницька область, Вінниця",84,2016-12-23,1,"Заробітна плата, премії","Заробітна плата, лікарняні, вагітності, відрядження, компенсації",389985,Центральний офіс,37279703,Україна,Заробітна плата,26002532154,state,5152.00,Федорова Ольга Іванівна,,фізична особа
РПЛ,"Київська обл., Бородянський район, Шибене",84,2016-12-23,1,"Заробітна плата, премії","Заробітна плата, лікарняні, вагітності, відрядження, компенсації",389984,Центральний офіс,37279703,Україна,Заробітна плата,26002532154,state,4976.36,Бардаш Олег Миколайович,,фізична особа
РПЛ,Київ,84,2016-12-23,1,"Заробітна плата, премії","Заробітна плата, лікарняні, вагітності, відрядження, компенсації",389983,Центральний офіс,37279703,Україна,Заробітна плата,26002532154,state,2341.81,Каширський Сергій Віталійович,,фізична особа
РПЛ,"Черкаська область, Черкаський район, Дубіївка",84,2016-12-23,1,"Заробітна плата, премії","Заробітна плата, лікарняні, вагітності, відрядження, компенсації",389982,Центральний офіс,37279703,Україна,Заробітна плата,26002532154,state,4976.36,Кутілова Вікторія Володимирівна,,фізична особа
РПЛ,Київ,84,2016-12-23,1,"Заробітна плата, премії","Заробітна плата, лікарняні, вагітності, відрядження, компенсації",389981,Центральний офіс,37279703,Україна,Заробітна плата,26002532154,state,2341.81,Пархоменко Аліна Петрівна,,фізична особа
РПЛ,Сумська область,84,2016-12-23,1,"Заробітна плата, премії","Заробітна плата, лікарняні, вагітності, відрядження, компенсації",389980,Центральний офіс,37279703,Україна,Заробітна плата,26002532154,state,1990.55,Шевченко Світлана Іванівна,,фізична особа
РПЛ,"Київська обл., Васильків",84,2016-12-23,1,"Заробітна плата, премії","Заробітна плата, лікарняні, вагітності, відрядження, компенсації",389979,Центральний офіс,37279703,Україна,Заробітна плата,26002532154,state,3732.27,Падурець Людмила Володимирівна,,фізична особа
РПЛ,"Херсонська область, Херсон",84,2016-12-23,1,"Заробітна плата, премії","Заробітна плата, лікарняні, вагітності, відрядження, компенсації",389978,Центральний офіс,37279703,Україна,Заробітна плата,26002532154,state,4683.64,Єпанчінцева Галина Вікторівна,,фізична особа
РПЛ,"Херсонська область, Херсон",84,2016-12-23,1,"Заробітна плата, премії","Заробітна плата, лікарняні, вагітності, відрядження, компенсації",389977,Центральний офіс,37279703,Україна,Заробітна плата,26002532154,state,4683.64,Грицаєнко Олександр Сергійович,,фізична особа
РПЛ,"Рівненська область, Рівне",84,2016-12-23,1,"Заробітна плата, премії","Заробітна плата, лікарняні, вагітності, відрядження, компенсації",389976,Центральний офіс,37279703,Україна,Заробітна плата,26002532154,state,4683.64,Назарчук Юлія Юріївна,,фізична особа
РПЛ,"Закарпатська область, Ужгород",84,2016-12-23,1,"Заробітна плата, премії","Заробітна плата, лікарняні, вагітності, відрядження, компенсації",389975,Центральний офіс,37279703,Україна,Заробітна плата,26002532154,state,4683.64,Рудман Олеся Іванівна,,фізична особа
РПЛ,"Дніпропетровська область, Нікополь",84,2016-12-23,1,"Заробітна плата, премії","Заробітна плата, лікарняні, вагітності, відрядження, компенсації",389974,Центральний офіс,37279703,Україна,Заробітна плата,26002532154,state,3278.55,Ясинська Наталія Вікторівна,,фізична особа
РПЛ,"Дніпропетровська область, Синельникове",84,2016-12-23,1,"Заробітна плата, премії","Заробітна плата, лікарняні, вагітності, відрядження, компенсації",389973,Центральний офіс,37279703,Україна,Заробітна плата,26002532154,state,3278.55,Чернова Катерина Валеріївна,,фізична особа
РПЛ,"Дніпропетровська область, Дніпро́",84,2016-12-23,1,"Заробітна плата, премії","Заробітна плата, лікарняні, вагітності, відрядження, компенсації",389972,Центральний офіс,37279703,Україна,Заробітна плата,26002532154,state,3278.55,Цаплін Євген Костянтинович,,фізична особа
РПЛ,"Дніпропетровська область, Дніпро́",84,2016-12-23,1,"Заробітна плата, премії","Заробітна плата, лікарняні, вагітності, відрядження, компенсації",389971,Центральний офіс,37279703,Україна,Заробітна плата,26002532154,state,3278.55,Зац Роман Аркадійович,,фізична особа
РПЛ,"Дніпропетровська область, Нікополь",84,2016-12-23,1,"Заробітна плата, премії","Заробітна плата, лікарняні, вагітності, відрядження, компенсації",389970,Центральний офіс,37279703,Україна,Заробітна плата,26002532154,state,3278.55,Горобець Сергій Геннадійович,,фізична особа
РПЛ,Київ,84,2016-12-23,1,"Заробітна плата, премії","Заробітна плата, лікарняні, вагітності, відрядження, компенсації",389969,Центральний офіс,37279703,Україна,Заробітна плата,26002532154,state,8459.81,Новохацька Олександра Вікторівна,,фізична особа
РПЛ,"Кіровоградська область, Олександрія",84,2016-12-23,1,"Заробітна плата, премії","Заробітна плата, лікарняні, вагітності, відрядження, компенсації",389968,Центральний офіс,37279703,Україна,Заробітна плата,26002532154,state,8459.81,Матвієць Вікторія Олександрівна,,фізична особа
РПЛ,Київ,84,2016-12-23,1,"Заробітна плата, премії","Заробітна плата, лікарняні, вагітності, відрядження, компенсації",389967,Центральний офіс,37279703,Україна,Заробітна плата,26002532154,state,8459.81,Цира Олександр Корнійович,,фізична особа
РПЛ,"Київська обл., Обухівський район, Обухів",84,2016-12-23,1,"Заробітна плата, премії","Заробітна плата, лікарняні, вагітності, відрядження, компенсації",389966,Центральний офіс,37279703,Україна,Заробітна плата,26002532154,state,8459.81,Потеряйко Вадим Юрійович,,фізична особа
РПЛ,"Чернігівська область, Чернігів",84,2016-12-23,1,"Заробітна плата, премії","Заробітна плата, лікарняні, вагітності, відрядження, компенсації",389965,Центральний офіс,37279703,Україна,Заробітна плата,26002532154,state,4229.91,Олексієнко Інна Володимирівна,,фізична особа
РПЛ,Київ,84,2016-12-23,1,"Заробітна плата, премії","Заробітна плата, лікарняні, вагітності, відрядження, компенсації",389964,Центральний офіс,37279703,Україна,Заробітна плата,26002532154,state,5214.20,Відмиш Євген Аркадійович,,фізична особа
РПЛ,"Чернігівська область, Чернігів",84,2016-12-23,1,"Заробітна плата, премії","Заробітна плата, лікарняні, вагітності, відрядження, компенсації",389963,Центральний офіс,37279703,Україна,Заробітна плата,26002532154,state,7962.19,Соколова Анжеліка Артурівна,,фізична особа
РПЛ,Київ,84,2016-12-23,1,"Заробітна плата, премії","Заробітна плата, лікарняні, вагітності, відрядження, компенсації",389962,Центральний офіс,37279703,Україна,Заробітна плата,26002532154,state,7713.36,Герасименко Євгеній Юрійович,,фізична особа
РПЛ,Київ,84,2016-12-23,1,"Заробітна плата, премії","Заробітна плата, лікарняні, вагітності, відрядження, компенсації",389961,Центральний офіс,37279703,Україна,Заробітна плата,26002532154,state,4253.69,Мелещук Наталія Володимирівна,,фізична особа
РПЛ,Київ,84,2016-12-23,1,"Заробітна плата, премії","Заробітна плата, лікарняні, вагітності, відрядження, компенсації",389960,Центральний офіс,37279703,Україна,Заробітна плата,26002532154,state,4650.70,Яковлєва Вероніка Павлівна,,фізична особа
РПЛ,"Київська обл., Броварський район",84,2016-12-23,1,"Заробітна плата, премії","Заробітна плата, лікарняні, вагітності, відрядження, компенсації",389959,Центральний офіс,37279703,Україна,Заробітна плата,26002532154,state,7962.19,Гринчук Тетяна Володимирівна,,фізична особа
РПЛ,Київ,84,2016-12-23,1,"Заробітна плата, премії","Заробітна плата, лікарняні, вагітності, відрядження, компенсації",389958,Центральний офіс,37279703,Україна,Заробітна плата,26002532154,state,8459.81,Рожок Ігор Анатолійович,,фізична особа
РПЛ,"Чернігівська область, Сновський район, Сновськ",84,2016-12-23,1,"Заробітна плата, премії","Заробітна плата, лікарняні, вагітності, відрядження, компенсації",389957,Центральний офіс,37279703,Україна,Заробітна плата,26002532154,state,4390.91,Данильченко Ніна Василівна,,фізична особа
РПЛ,"Київська обл., Бориспіль",84,2016-12-23,1,"Заробітна плата, премії","Заробітна плата, лікарняні, вагітності, відрядження, компенсації",389956,Центральний офіс,37279703,Україна,Заробітна плата,26002532154,state,8211.00,Федун Юрій Степанович,,фізична особа
РПЛ,"Полтавська область, Полтава, вулиця Кучеренка",84,2016-12-23,1,"Заробітна плата, премії","Заробітна плата, лікарняні, вагітності, відрядження, компенсації",389955,Центральний офіс,37279703,Україна,Заробітна плата,26002532154,state,8459.81,Матяш Руслан Анатолійович,,фізична особа
РПЛ,"Київська обл., Васильків",84,2016-12-23,1,"Заробітна плата, премії","Заробітна плата, лікарняні, вагітності, відрядження, компенсації",389954,Центральний офіс,37279703,Україна,Заробітна плата,26002532154,state,6966.91,Криворучко Ігор Олегович,,фізична особа
РПЛ,Київ,84,2016-12-23,1,"Заробітна плата, премії","Заробітна плата, лікарняні, вагітності, відрядження, компенсації",389953,Центральний офіс,37279703,Україна,Заробітна плата,26002532154,state,8459.81,Макарова Юлія Миколаївна,,фізична особа
РПЛ,"Чернігівська область, Корюківський район, Корюківка",84,2016-12-23,1,"Заробітна плата, премії","Заробітна плата, лікарняні, вагітності, відрядження, компенсації",389952,Центральний офіс,37279703,Україна,Заробітна плата,26002532154,state,8211.00,Стукало Світлана Анатоліївна,,фізична особа
РПЛ,"Київська обл., Броварський район",84,2016-12-23,1,"Заробітна плата, премії","Заробітна плата, лікарняні, вагітності, відрядження, компенсації",389951,Центральний офіс,37279703,Україна,Заробітна плата,26002532154,state,8459.81,Атаманенко Людмила Миколаївна,,фізична особа
РПЛ,Київ,84,2016-12-23,1,"Заробітна плата, премії","Заробітна плата, лікарняні, вагітності, відрядження, компенсації",389950,Центральний офіс,37279703,Україна,Заробітна плата,26002532154,state,6088.73,Самсонова Аліна Вікторівна,,фізична особа
РПЛ,"Київська обл., Бориспіль",84,2016-12-23,1,"Заробітна плата, премії","Заробітна плата, лікарняні, вагітності, відрядження, компенсації",389949,Центральний офіс,37279703,Україна,Заробітна плата,26002532154,state,6322.91,Проценко Володимир Володимирович,,фізична особа
РПЛ,"Київ, вулиця Анни Ахматової",84,2016-12-23,1,"Заробітна плата, премії","Заробітна плата, лікарняні, вагітності, відрядження, компенсації",389948,Центральний офіс,37279703,Україна,Заробітна плата,26002532154,state,7259.64,Бондаренко Владислав Юрійович,,фізична особа
РПЛ,Чернігівська область,84,2016-12-23,1,"Заробітна плата, премії","Заробітна плата, лікарняні, вагітності, відрядження, компенсації",389947,Центральний офіс,37279703,Україна,Заробітна плата,26002532154,state,3512.73,Крамаренко Сергій Миколайович,,фізична особа
РПЛ,"Чернігівська область, Чернігів",84,2016-12-23,1,"Заробітна плата, премії","Заробітна плата, лікарняні, вагітності, відрядження, компенсації",389946,Центральний офіс,37279703,Україна,Заробітна плата,26002532154,state,7025.45,Урожай Аліна Вікторівна,,фізична особа
РПЛ,"Чернівецька область, Чернівці",84,2016-12-23,1,"Заробітна плата, премії","Заробітна плата, лікарняні, вагітності, відрядження, компенсації",389945,Центральний офіс,37279703,Україна,Заробітна плата,26002532154,state,7728.00,Сербенюк Андрій Альфредович,,фізична особа
РПЛ,"Вінницька область, Чернівецький район, Чернівці",84,2016-12-23,1,"Заробітна плата, премії","Заробітна плата, лікарняні, вагітності, відрядження, компенсації",389944,Центральний офіс,37279703,Україна,Заробітна плата,26002532154,state,7728.00,Войцех Юлія Миколаївна,,фізична особа
РПЛ,"Чернівецька область, Чернівці",84,2016-12-23,1,"Заробітна плата, премії","Заробітна плата, лікарняні, вагітності, відрядження, компенсації",389943,Центральний офіс,37279703,Україна,Заробітна плата,26002532154,state,7728.00,Беркещук Катерина Володимирівна,,фізична особа
РПЛ,"Черкаська область, Черкаси",84,2016-12-23,1,"Заробітна плата, премії","Заробітна плата, лікарняні, вагітності, відрядження, компенсації",389942,Центральний офіс,37279703,Україна,Заробітна плата,26002532154,state,6322.91,Белінська Тетяна Миколаївна,,фізична особа
РПЛ,"Черкаська область, Черкаси",84,2016-12-23,1,"Заробітна плата, премії","Заробітна плата, лікарняні, вагітності, відрядження, компенсації",389941,Центральний офіс,37279703,Україна,Заробітна плата,26002532154,state,5737.45,Сичов Ігор Григорович,,фізична особа
РПЛ,"Черкаська область, Черкаси",84,2016-12-23,1,"Заробітна плата, премії","Заробітна плата, лікарняні, вагітності, відрядження, компенсації",389940,Центральний офіс,37279703,Україна,Заробітна плата,26002532154,state,5152.00,Олексієнко Ярослав Олександрович,,фізична особа
РПЛ,"Хмельницька область, Хмельницький",84,2016-12-23,1,"Заробітна плата, премії","Заробітна плата, лікарняні, вагітності, відрядження, компенсації",389939,Центральний офіс,37279703,Україна,Заробітна плата,26002532154,state,3512.73,Данілкова Анастасія Юріївна,,фізична особа
РПЛ,"Хмельницька область, Хмельницький",84,2016-12-23,1,"Заробітна плата, премії","Заробітна плата, лікарняні, вагітності, відрядження, компенсації",389938,Центральний офіс,37279703,Україна,Заробітна плата,26002532154,state,3512.73,Процюк Наталія Юріївна,,фізична особа
РПЛ,"Хмельницька область, Хмельницький",84,2016-12-23,1,"Заробітна плата, премії","Заробітна плата, лікарняні, вагітності, відрядження, компенсації",389937,Центральний офіс,37279703,Україна,Заробітна плата,26002532154,state,7728.00,Мевша Денис Васильович,,фізична особа
РПЛ,"Тернопільська область, Тернопіль",84,2016-12-23,1,"Заробітна плата, премії","Заробітна плата, лікарняні, вагітності, відрядження, компенсації",389936,Центральний офіс,37279703,Україна,Заробітна плата,26002532154,state,6088.73,Влізло Ольга Миколаївна,,фізична особа
РПЛ,"Тернопільська область, Тернопіль",84,2016-12-23,1,"Заробітна плата, премії","Заробітна плата, лікарняні, вагітності, відрядження, компенсації",389935,Центральний офіс,37279703,Україна,Заробітна плата,26002532154,state,6088.73,Федчук Тетяна Григорівна,,фізична особа
РПЛ,"Тернопільська область, Тернопіль",84,2016-12-23,1,"Заробітна плата, премії","Заробітна плата, лікарняні, вагітності, відрядження, компенсації",389934,Центральний офіс,37279703,Україна,Заробітна плата,26002532154,state,6322.91,Самуляк Михайло Юрійович,,фізична особа
РПЛ,"Сумська область, Суми, проспект Михайла Лушпи",84,2016-12-23,1,"Заробітна плата, премії","Заробітна плата, лікарняні, вагітності, відрядження, компенсації",389933,Центральний офіс,37279703,Україна,Заробітна плата,26002532154,state,6791.27,Гаврилова Анна Анатоліївна,,фізична особа
РПЛ,"Сумська область, Буринський район, Біжівка",84,2016-12-23,1,"Заробітна плата, премії","Заробітна плата, лікарняні, вагітності, відрядження, компенсації",389932,Центральний офіс,37279703,Україна,Заробітна плата,26002532154,state,6791.27,Гусак Леся Юріївна,,фізична особа
РПЛ,"Сумська область, Сумський район, Суми",84,2016-12-23,1,"Заробітна плата, премії","Заробітна плата, лікарняні, вагітності, відрядження, компенсації",389931,Центральний офіс,37279703,Україна,Заробітна плата,26002532154,state,6791.27,Красуля Юлія Миколаївна,,фізична особа
РПЛ,"Рівненська область, Рівне",84,2016-12-23,1,"Заробітна плата, премії","Заробітна плата, лікарняні, вагітності, відрядження, компенсації",389930,Центральний офіс,37279703,Україна,Заробітна плата,26002532154,state,3512.73,Конєв Володимир Леонідович,,фізична особа
РПЛ,"Рівненська область, Рівне, вулиця Макарова",84,2016-12-23,1,"Заробітна плата, премії","Заробітна плата, лікарняні, вагітності, відрядження, компенсації",389929,Центральний офіс,37279703,Україна,Заробітна плата,26002532154,state,7025.45,Біла Оксана Володимирівна,,фізична особа
РПЛ,Київ,83,2016-12-23,4,"Виплати працівникам (не зарплата): лікарняні, вагітності, відрядження, компенсації ","Заробітна плата, лікарняні, вагітності, відрядження, компенсації",389928,Центральний офіс,37279703,Україна,Виплата на відрядження,26002532154,state,2315.33,Макарова Юлія Миколаївна,,фізична особа
РПЛ,"Київська обл., Броварський район",83,2016-12-23,3,"Виплати працівникам (не зарплата): лікарняні, вагітності, відрядження, компенсації ","Заробітна плата, лікарняні, вагітності, відрядження, компенсації",389927,Центральний офіс,37279703,Україна,Виплата на відрядження,26002532154,state,2300.00,Гринчук Тетяна Володимирівна,,фізична особа
РПЛ,"Київ, вулиця Миколи Лєскова, 9",70,2016-12-23,б/н,Банківські послуги,Інші витрати,389920,Центральний офіс,37279703,Україна,Комісія за користанням пакетом послуг,26000368825,current,3540.93,"АТ ""Райффайзен банк Аваль""",14305909,юридична особа
РПЛ,"Київ, вулиця Академіка Туполєва, 28А",63,2016-12-22,1439,Податок на доходи,Податкові платежі,390129,Центральний офіс,37279703,Україна,Податок на доходи фізичних осіб,26002532154,state,111.27,УДКСУ у Шевченківському районі м. Києва,37995466,юридична особа
РПЛ,"Київ, проспект Науки, 63",57,2016-12-22,1437,Виготовлення брендованої продукції,"Виготовлення брендованої продукції (футболки, кепки, парасольки)",390128,Центральний офіс,37279703,Україна,За календарі,26002532154,state,410000.00,"ТОВ ""СТЕП 2 ТРЕЙД""",39581332,юридична особа
РПЛ,"Київ, вулиця Академіка Туполєва, 28А",61,2016-12-22,1436,Військовий збір,Податкові платежі,390127,Центральний офіс,37279703,Україна,Військовий збір,26002532154,state,7046.80,УДКСУ у Шевченківському районі м. Києва,37995466,юридична особа
РПЛ,"Київ, вулиця Академіка Туполєва, 28А",63,2016-12-22,1435,Податок на доходи,Податкові платежі,390126,Центральний офіс,37279703,Україна,Податок на доходи фізичних осіб,26002532154,state,84571.55,УДКСУ у Шевченківському районі м. Києва,37995466,юридична особа
РПЛ,"Київ, вулиця Багговутівська, 26",62,2016-12-22,1434,Сплата ЄСВ,Податкові платежі,390125,Центральний офіс,37279703,Україна,Єдиний соціальний внесок,26002532154,state,103363.00,ДПІ у Шевченківському районі у м. Києві,38728711,юридична особа
РПЛ,"Київ, бульвар Ромена Роллана, 13",74,2016-12-21,1433,"Придбання канцтоварів, паперу, інших предметів і матеріалів, а також госп товари",Придбання канцтоварів та госп. товарів,390124,Центральний офіс,37279703,Україна,За аптечку медичну,26002532154,state,990.00,"ТОВ ""ФАРММЕДАЛЬЯНС""",38929750,юридична особа
РПЛ,"Київська обл., Бориспільський район, Петропавлівське",72,2016-12-21,1432,"Придбання, ремонт офісної техніки та програмного забезпечення (Бухгалтерські програми, Ліга.закон, домени)",Придбання офісної техніки та програмного забезпечення,390123,Центральний офіс,37279703,Україна,За консультативні послуги з програмного забезпечення 1С,26002532154,state,2160.00,Чумак Павло Михайлович,2793521637,фізична особа
РПЛ,"Хмельницька область, Хмельницький, вулиця Грушевського, 59",72,2016-12-21,1431,"Придбання, ремонт офісної техніки та програмного забезпечення (Бухгалтерські програми, Ліга.закон, домени)",Придбання офісної техніки та програмного забезпечення,390122,Центральний офіс,37279703,Україна,За товар,26002532154,state,1020.00,"ТОВ ""27""",40063820,юридична особа
РПЛ,"Київ, вулиця Євгенія Харченка, 15",72,2016-12-21,1430,"Придбання, ремонт офісної техніки та програмного забезпечення (Бухгалтерські програми, Ліга.закон, домени)",Придбання офісної техніки та програмного забезпечення,390121,Центральний офіс,37279703,Україна,За принтер,26002532154,state,5680.00,Авраменко Павло Олександрович,3071104510,фізична особа
РПЛ,"Хмельницька область, Хмельницький, вулиця Грушевського, 59",72,2016-12-21,1429,"Придбання, ремонт офісної техніки та програмного забезпечення (Бухгалтерські програми, Ліга.закон, домени)",Придбання офісної техніки та програмного забезпечення,390120,Центральний офіс,37279703,Україна,За товар,26002532154,state,11514.70,"ТОВ ""27""",40063820,юридична особа
РПЛ,"Київ, проспект Науки, 63",57,2016-12-21,1428,Виготовлення брендованої продукції,"Виготовлення брендованої продукції (футболки, кепки, парасольки)",390119,Центральний офіс,37279703,Україна,За наклнки,26002532154,state,391050.00,"ТОВ ""СТЕП 2 ТРЕЙД""",39581332,юридична особа
РПЛ,"Київ, вулиця Будіндустрії, 7",73,2016-12-21,1427,Придбання меблів,Придбання меблів,390118,Центральний офіс,37279703,Україна,За хімчистку мʼ яких меблів,26002532154,state,14119.12,Семенюк Сергій Валентинович,3129823058,фізична особа
РПЛ,"Київ, вулиця Будіндустрії, 7",43,2016-12-21,1426,Інші витрати,Інші витрати,390117,Центральний офіс,37279703,Україна,За чистку кондиціонерів,26002532154,state,4900.00,Семенюк Сергій Валентинович,3129823058,фізична особа
РПЛ,"Волинська область, Луцьк, Кременецька вулиця, 38",77,2016-12-19,1425,"Оренда, ремонт та обслуговування автомобілів","Оренда, ремонт та обслуговування автомобілів",390116,Центральний офіс,37279703,Україна,За газ вуглеводневий скраплений,26002532154,state,32835.00,"ТОВ ""Нафтотрейд Ресурс""",33680859,юридична особа
РПЛ,"Київ, вулиця Багговутівська, 26",62,2016-12-19,1424,Сплата ЄСВ,Податкові платежі,390115,Центральний офіс,37279703,Україна,Єдиний соціальний внесок,26002532154,state,33493.50,ДПІ у Шевченківському районі у м. Києві,38728711,юридична особа
РПЛ,"Київ, вулиця Академіка Туполєва, 28А",61,2016-12-19,1423,Військовий збір,Податкові платежі,390114,Центральний офіс,37279703,Україна,Військовий збір,26002532154,state,2283.65,УДКСУ у Шевченківському районі м. Києва,37995466,юридична особа
РПЛ,"Київ, вулиця Академіка Туполєва, 28А",63,2016-12-19,1422,Податок на доходи,Податкові платежі,390113,Центральний офіс,37279703,Україна,Податок на доходи фізичних осіб,26002532154,state,27403.77,УДКСУ у Шевченківському районі м. Києва,37995466,юридична особа
РПЛ,"Київ, вулиця Червоноткацька, 69",57,2016-12-19,1421,Виготовлення брендованої продукції,"Виготовлення брендованої продукції (футболки, кепки, парасольки)",390112,Центральний офіс,37279703,Україна,За прапори,26002532154,state,2400.00,"ТОВ ""ДШК імені Яськова""",34183584,юридична особа
РПЛ,"Київ, вулиця Червоноткацька, 69",57,2016-12-19,1420,Виготовлення брендованої продукції,"Виготовлення брендованої продукції (футболки, кепки, парасольки)",390111,Центральний офіс,37279703,Україна,За флаги,26002532154,state,30000.00,"ТОВ ""ДШК імені Яськова""",34183584,юридична особа
РПЛ,"Київ, вулиця Червоноткацька, 69",57,2016-12-19,1419,Виготовлення брендованої продукції,"Виготовлення брендованої продукції (футболки, кепки, парасольки)",390110,Центральний офіс,37279703,Україна,"За пак.банан,майку з логотипом",26002532154,state,255000.00,"ТОВ ""ДШК імені Яськова""",34183584,юридична особа
РПЛ,"Волинська область, Луцьк, Кременецька вулиця, 38",77,2016-12-16,1418,"Оренда, ремонт та обслуговування автомобілів","Оренда, ремонт та обслуговування автомобілів",390109,Центральний офіс,37279703,Україна,За газ вуглеводневий скраплений,26002532154,state,64450.00,"ТОВ ""Нафтотрейд Ресурс""",33680859,юридична особа
РПЛ,"Київ, Повітрофлотський проспект, 54",50,2016-12-16,1417,Оплата ефірного часу на радіо,Реклама на радіо,390108,Центральний офіс,37279703,Україна,Розміщення рекламних роликів,26002532154,state,385296.00,"ТОВ ""ТРК ""Радіо-Ера""",30019068,юридична особа
РПЛ,"Київ, вулиця Польова, 21",51,2016-12-16,1416,Оплата ефірного часу на ТБ,Телереклама,390107,Центральний офіс,37279703,Україна,Розміщення рекламних роликів,26002532154,state,1841400.00,"ТОВ ""Новини 24 години""",33786517,юридична особа
РПЛ,"Київ, вулиця Дегтярівська, 21Г",51,2016-12-16,1415,Оплата ефірного часу на ТБ,Телереклама,390106,Центральний офіс,37279703,Україна,Розміщення відеоматеріалу в ефірі,26002532154,state,3721320.00,"ТОВ ""Інформаційне агентство ""112-Україна""",,юридична особа
РПЛ,"Київ, Повітрофлотський проспект, 54",51,2016-12-16,1414,Оплата ефірного часу на ТБ,Телереклама,390105,Центральний офіс,37279703,Україна,Розміщення рекламного сюжету,26002532154,state,228960.00,"ТОВ ""Телерадіокомпанія ""Ера""",30019052,юридична особа
РПЛ,"Київ, Повітрофлотський проспект, 54",51,2016-12-16,1413,Оплата ефірного часу на ТБ,Телереклама,390104,Центральний офіс,37279703,Україна,Розміщення рекламного сюжету,26002532154,state,665280.00,"ТОВ ""Телерадіокомпанія ""Ера""",30019052,юридична особа
РПЛ,"Київ, проспект Науки, 63",57,2016-12-15,1412,Виготовлення брендованої продукції,"Виготовлення брендованої продукції (футболки, кепки, парасольки)",390103,Центральний офіс,37279703,Україна,За календарі,26002532154,state,280500.00,"ТОВ ""СТЕП 2 ТРЕЙД""",39581332,юридична особа
РПЛ,"Київ, проспект Науки, 63",57,2016-12-15,1411,Виготовлення брендованої продукції,"Виготовлення брендованої продукції (футболки, кепки, парасольки)",390102,Центральний офіс,37279703,Україна,За календарі,26002532154,state,405350.00,"ТОВ ""СТЕП 2 ТРЕЙД""",39581332,юридична особа
РПЛ,"Київ, вулиця Миколи Лєскова, 9",70,2016-12-15,1,Банківські послуги,Інші витрати,390064,Центральний офіс,37279703,Україна,За оформлення чекової книжки,26002532154,state,50.00,"АТ ""Райффайзен банк Аваль""",14305909,юридична особа
РПЛ,"Київ, бульвар Лесі Українки, 26",57,2016-12-14,1410,Виготовлення брендованої продукції,"Виготовлення брендованої продукції (футболки, кепки, парасольки)",390101,Центральний офіс,37279703,Україна,За продукцію (брендові вироби),26002532154,state,479224.00,Лісовий В І,2707601471,фізична особа
РПЛ,"Київ, вулиця Михайла Бойчука, 18",57,2016-12-14,1409,Виготовлення брендованої продукції,"Виготовлення брендованої продукції (футболки, кепки, парасольки)",390100,Центральний офіс,37279703,Україна,За продукцію (брендові вироби),26002532154,state,374300.00,"ТОВ ""Нові дисконтні системи України""",35196903,юридична особа
РПЛ,"Київ, вулиця Парково-Сирецька, 23",72,2016-12-14,1408,"Придбання, ремонт офісної техніки та програмного забезпечення (Бухгалтерські програми, Ліга.закон, домени)",Придбання офісної техніки та програмного забезпечення,390099,Центральний офіс,37279703,Україна,За ліцензію на право користування програмою,26002532154,state,22427.00,"ТОВ ""Ліга-закон""",35256291,юридична особа
РПЛ,"Київ, вулиця Будіндустрії, 7",43,2016-12-14,1407,Інші витрати,Інші витрати,390098,Центральний офіс,37279703,Україна,За послуги з хімчистки,26002532154,state,2800.00,Семенюк Сергій Валентинович,3129823058,фізична особа
РПЛ,"Київ, вулиця Макіївська, 7, 216",73,2016-12-14,1406,Придбання меблів,Придбання меблів,390097,Центральний офіс,37279703,Україна,За меблі офісні,26002532154,state,88279.00,Марченко Максим Анатолійович,2791804895,фізична особа
РПЛ,"Київ, вулиця Костянтинівська, 2А",72,2016-12-14,1405,"Придбання, ремонт офісної техніки та програмного забезпечення (Бухгалтерські програми, Ліга.закон, домени)",Придбання офісної техніки та програмного забезпечення,390096,Центральний офіс,37279703,Україна,За обладнання,26002532154,state,219420.00,"ТОВ ""ІНДІГО МʼЮЗІК КИЇВ""",36336977,юридична особа
РПЛ,"Київ, вулиця Академіка Єфремова, 9, 130",57,2016-12-14,1404,Виготовлення брендованої продукції,"Виготовлення брендованої продукції (футболки, кепки, парасольки)",390095,Центральний офіс,37279703,Україна,За приладдя,26002532154,state,6450.00,Данілов Є О,3063214952,фізична особа
РПЛ,"Київ, Печерський узвіз, 3",72,2016-12-14,1403,"Придбання, ремонт офісної техніки та програмного забезпечення (Бухгалтерські програми, Ліга.закон, домени)",Придбання офісної техніки та програмного забезпечення,390094,Центральний офіс,37279703,Україна,За відновлення картриджа,26002532154,state,8400.00,"ТОВ ""МТП-груп""",39040187,юридична особа
РПЛ,"Київ, вулиця Червоноткацька, 69",57,2016-12-14,1402,Виготовлення брендованої продукції,"Виготовлення брендованої продукції (футболки, кепки, парасольки)",390093,Центральний офіс,37279703,Україна,За палатки,26002532154,state,328000.00,"ТОВ ""ДШК імені Яськова""",34183584,юридична особа
РПЛ,"Київ, вулиця Червоноткацька, 69",57,2016-12-14,1401,Виготовлення брендованої продукції,"Виготовлення брендованої продукції (футболки, кепки, парасольки)",390092,Центральний офіс,37279703,Україна,За куртки,26002532154,state,144000.00,"ТОВ ""ДШК імені Яськова""",34183584,юридична особа
РПЛ,"Київ, вулиця Червоноткацька, 69",57,2016-12-14,1400,Виготовлення брендованої продукції,"Виготовлення брендованої продукції (футболки, кепки, парасольки)",390091,Центральний офіс,37279703,Україна,За куртки,26002532154,state,192000.00,"ТОВ ""ДШК імені Яськова""",34183584,юридична особа
РПЛ,"Київ, вулиця Червоноткацька, 69",57,2016-12-14,1399,Виготовлення брендованої продукції,"Виготовлення брендованої продукції (футболки, кепки, парасольки)",390090,Центральний офіс,37279703,Україна,За куртки,26002532154,state,144000.00,"ТОВ ""ДШК імені Яськова""",34183584,юридична особа
РПЛ,"Київ, вулиця Червоноткацька, 69",57,2016-12-14,1398,Виготовлення брендованої продукції,"Виготовлення брендованої продукції (футболки, кепки, парасольки)",390089,Центральний офіс,37279703,Україна,За палатки,26002532154,state,364000.00,"ТОВ ""ДШК імені Яськова""",34183584,юридична особа
РПЛ,"Київ, вулиця Червоноткацька, 69",57,2016-12-14,1397,Виготовлення брендованої продукції,"Виготовлення брендованої продукції (футболки, кепки, парасольки)",390088,Центральний офіс,37279703,Україна,За футболки,26002532154,state,56000.00,"ТОВ ""ДШК імені Яськова""",34183584,юридична особа
РПЛ,"Київ, вулиця Червоноткацька, 69",57,2016-12-14,1396,Виготовлення брендованої продукції,"Виготовлення брендованої продукції (футболки, кепки, парасольки)",390087,Центральний офіс,37279703,Україна,За футболки,26002532154,state,391150.00,"ТОВ ""ДШК імені Яськова""",34183584,юридична особа
РПЛ,"Київ, вулиця Червоноткацька, 69",57,2016-12-14,1395,Виготовлення брендованої продукції,"Виготовлення брендованої продукції (футболки, кепки, парасольки)",390086,Центральний офіс,37279703,Україна,За прапори,26002532154,state,5130.00,"ТОВ ""ДШК імені Яськова""",34183584,юридична особа
РПЛ,"Київ, вулиця Світла, 6А",74,2016-12-14,1394,"Придбання канцтоварів, паперу, інших предметів і матеріалів, а також госп товари",Придбання канцтоварів та госп. товарів,390085,Центральний офіс,37279703,Україна,За концтовари,26002532154,state,3794.40,"ПП ""Універсалторг-сервіс""",36214844,юридична особа
РПЛ,"Київ, вулиця Світла, 6А",74,2016-12-14,1393,"Придбання канцтоварів, паперу, інших предметів і матеріалів, а також госп товари",Придбання канцтоварів та госп. товарів,390084,Центральний офіс,37279703,Україна,За концтовари,26002532154,state,5054.44,"ПП ""Універсалторг-сервіс""",36214844,юридична особа
РПЛ,"Київ, вулиця Світла, 6А",74,2016-12-14,1392,"Придбання канцтоварів, паперу, інших предметів і матеріалів, а також госп товари",Придбання канцтоварів та госп. товарів,390083,Центральний офіс,37279703,Україна,За концтовари,26002532154,state,4675.42,"ПП ""Універсалторг-сервіс""",36214844,юридична особа
РПЛ,"Київ, вулиця Світла, 6А",74,2016-12-14,1391,"Придбання канцтоварів, паперу, інших предметів і матеріалів, а також госп товари",Придбання канцтоварів та госп. товарів,390082,Центральний офіс,37279703,Україна,За обладнання,26002532154,state,6136.46,"ПП ""Універсалторг-сервіс""",36214844,юридична особа
РПЛ,"Київ, вулиця Світла, 6А",74,2016-12-14,1390,"Придбання канцтоварів, паперу, інших предметів і матеріалів, а також госп товари",Придбання канцтоварів та госп. товарів,390081,Центральний офіс,37279703,Україна,За концтовари,26002532154,state,6381.26,"ПП ""Універсалторг-сервіс""",36214844,юридична особа
РПЛ,"Київ, вулиця Світла, 6А",74,2016-12-14,1389,"Придбання канцтоварів, паперу, інших предметів і матеріалів, а також госп товари",Придбання канцтоварів та госп. товарів,390080,Центральний офіс,37279703,Україна,За концтовари,26002532154,state,4346.60,"ПП ""Універсалторг-сервіс""",36214844,юридична особа
РПЛ,"Київ, вулиця Світла, 6А",74,2016-12-14,1388,"Придбання канцтоварів, паперу, інших предметів і матеріалів, а також госп товари",Придбання канцтоварів та госп. товарів,390079,Центральний офіс,37279703,Україна,За концтовари,26002532154,state,5471.05,"ПП ""Універсалторг-сервіс""",36214844,юридична особа
РПЛ,"Київ, вулиця Світла, 6А",74,2016-12-14,1387,"Придбання канцтоварів, паперу, інших предметів і матеріалів, а також госп товари",Придбання канцтоварів та госп. товарів,390078,Центральний офіс,37279703,Україна,За концтовари,26002532154,state,6898.55,"ПП ""Універсалторг-сервіс""",36214844,юридична особа
РПЛ,"Київ, вулиця Світла, 6А",74,2016-12-14,1386,"Придбання канцтоварів, паперу, інших предметів і матеріалів, а також госп товари",Придбання канцтоварів та госп. товарів,390077,Центральний офіс,37279703,Україна,За обладнання,26002532154,state,6939.89,"ПП ""Універсалторг-сервіс""",36214844,юридична особа
РПЛ,"Київ, вулиця Світла, 6А",74,2016-12-14,1385,"Придбання канцтоварів, паперу, інших предметів і матеріалів, а також госп товари",Придбання канцтоварів та госп. товарів,390076,Центральний офіс,37279703,Україна,За концтовари,26002532154,state,6937.80,"ПП ""Універсалторг-сервіс""",36214844,юридична особа
РПЛ,"Київ, Печерський узвіз, 3",57,2016-12-14,1384,Виготовлення брендованої продукції,"Виготовлення брендованої продукції (футболки, кепки, парасольки)",390075,Центральний офіс,37279703,Україна,Авансові платежі за сумки,26002532154,state,138000.00,"ТОВ ""Борса""",37848922,юридична особа
РПЛ,"Київ, Печерський узвіз, 3",72,2016-12-14,1383,"Придбання, ремонт офісної техніки та програмного забезпечення (Бухгалтерські програми, Ліга.закон, домени)",Придбання офісної техніки та програмного забезпечення,390074,Центральний офіс,37279703,Україна,За електротовари,26002532154,state,11691.12,"ТОВ ""МТП-груп""",39040187,юридична особа
РПЛ,"Київ, Печерський узвіз, 3",72,2016-12-14,1382,"Придбання, ремонт офісної техніки та програмного забезпечення (Бухгалтерські програми, Ліга.закон, домени)",Придбання офісної техніки та програмного забезпечення,390073,Центральний офіс,37279703,Україна,За електротовари,26002532154,state,5422.80,"ТОВ ""МТП-груп""",39040187,юридична особа
РПЛ,"Київ, Печерський узвіз, 3",72,2016-12-14,1381,"Придбання, ремонт офісної техніки та програмного забезпечення (Бухгалтерські програми, Ліга.закон, домени)",Придбання офісної техніки та програмного забезпечення,390072,Центральний офіс,37279703,Україна,За електротовари,26002532154,state,28500.00,"ТОВ ""МТП-груп""",39040187,юридична особа
РПЛ,"Київ, Печерський узвіз, 3",72,2016-12-14,1380,"Придбання, ремонт офісної техніки та програмного забезпечення (Бухгалтерські програми, Ліга.закон, домени)",Придбання офісної техніки та програмного забезпечення,390071,Центральний офіс,37279703,Україна,За електротовари,26002532154,state,13920.00,"ТОВ ""МТП-груп""",39040187,юридична особа
РПЛ,"Волинська область, Луцьк, Кременецька вулиця, 38",77,2016-12-13,1379,"Оренда, ремонт та обслуговування автомобілів","Оренда, ремонт та обслуговування автомобілів",390070,Центральний офіс,37279703,Україна,За бензин,26002532154,state,124450.00,"ТОВ ""Нафтотрейд Ресурс""",33680859,юридична особа
РПЛ,"Дніпропетровська область, Дніпро́, вулиця Калинова, 43",79,2016-12-13,1378,"Оренда будинків і приміщень та експлуатаційні витрати (прибирання, страхування орендованих будинків, охорона, сигналізація, ремонт, вивіз сміття, тощо)",Оренда нерухомості,390069,Центральний офіс,37279703,Україна,Компесація комунальних послуг,26002532154,state,5287.86,"ТОВ ""Наутилус-Інвест 2006""",34823774,юридична особа
РПЛ,"Дніпропетровська область, Дніпро́, вулиця Калинова, 43",79,2016-12-13,1377,"Оренда будинків і приміщень та експлуатаційні витрати (прибирання, страхування орендованих будинків, охорона, сигналізація, ремонт, вивіз сміття, тощо)",Оренда нерухомості,390068,Центральний офіс,37279703,Україна,Оренда нежитлового приміщення,26002532154,state,13895.00,"ТОВ ""Наутилус-Інвест 2006""",34823774,юридична особа
РПЛ,"Дніпропетровська область, Дніпро́, вулиця Калинова, 43",79,2016-12-13,1376,"Оренда будинків і приміщень та експлуатаційні витрати (прибирання, страхування орендованих будинків, охорона, сигналізація, ремонт, вивіз сміття, тощо)",Оренда нерухомості,390067,Центральний офіс,37279703,Україна,Оренда нежитлового приміщення,26002532154,state,113855.00,"ТОВ ""Наутилус-Інвест 2006""",34823774,юридична особа
РПЛ,"Київ, вулиця Маршала Рибалка, 11",72,2016-12-08,1375,"Придбання, ремонт офісної техніки та програмного забезпечення (Бухгалтерські програми, Ліга.закон, домени)",Придбання офісної техніки та програмного забезпечення,390066,Центральний офіс,37279703,Україна,За програму ІС,26002532154,state,4680.00,"ТОВ ""ЦПЗ ""Софтком""",38516922,юридична особа
РПЛ,"Київська обл., Бориспільський район, Петропавлівське",72,2016-12-08,1374,"Придбання, ремонт офісної техніки та програмного забезпечення (Бухгалтерські програми, Ліга.закон, домени)",Придбання офісної техніки та програмного забезпечення,390065,Центральний офіс,37279703,Україна,За розробку програмного забезпечення 1С,26002532154,state,4680.00,Чумак Павло Михайлович,2793521637,фізична особа
РПЛ,"Київська обл., Бориспільський район, Петропавлівське",72,2016-12-08,1373,"Придбання, ремонт офісної техніки та програмного забезпечення (Бухгалтерські програми, Ліга.закон, домени)",Придбання офісної техніки та програмного забезпечення,390063,Центральний офіс,37279703,Україна,За консультативні послуги з програмного забезпечення 1С,26002532154,state,5808.00,Чумак Павло Михайлович,2793521637,фізична особа
РПЛ,"Київ, проспект Науки, 63",57,2016-12-07,1372,Виготовлення брендованої продукції,"Виготовлення брендованої продукції (футболки, кепки, парасольки)",390062,Центральний офіс,37279703,Україна,За папки,26002532154,state,193500.00,"ТОВ ""СТЕП 2 ТРЕЙД""",39581332,юридична особа
РПЛ,"Київ, проспект Науки, 63",57,2016-12-07,1370,Виготовлення брендованої продукції,"Виготовлення брендованої продукції (футболки, кепки, парасольки)",390061,Центральний офіс,37279703,Україна,За блокноти,26002532154,state,247500.00,"ТОВ ""СТЕП 2 ТРЕЙД""",39581332,юридична особа
РПЛ,"Київ, проспект Науки, 63",57,2016-12-07,1371,Виготовлення брендованої продукції,"Виготовлення брендованої продукції (футболки, кепки, парасольки)",390060,Центральний офіс,37279703,Україна,За папки,26002532154,state,13500.00,"ТОВ ""СТЕП 2 ТРЕЙД""",39581332,юридична особа
РПЛ,"Київ, вулиця Миколи Кибальчича, 14",71,2016-12-07,1369,Придбання рухомого майна (окрім транспортних засобів),Інші витрати,390059,Центральний офіс,37279703,Україна,За алюмієві вироби,26002532154,state,62800.00,Матвійчук С М,2808900991,фізична особа
РПЛ,"Київ, вулиця Миколи Кибальчича, 14",71,2016-12-07,1368,Придбання рухомого майна (окрім транспортних засобів),Інші витрати,390058,Центральний офіс,37279703,Україна,За алюмієві вироби,26002532154,state,28200.00,Матвійчук С М,2808900991,фізична особа
РПЛ,"Київ, вулиця Казимира Малевича, 66",73,2016-12-07,1366,Придбання меблів,Придбання меблів,390057,Центральний офіс,37279703,Україна,За сейф,26002532154,state,4932.00,"ПРаТ ""УХЛ-МАШ""",14311749,юридична особа
РПЛ,"Київ, вулиця Казимира Малевича, 66",80,2016-12-07,1367,"Транспортні послуги (квитки, пасажирські перевезення і т.д.)","Транспортні послуги (квитки, пасажирські перевезення і т.д.)",390056,Центральний офіс,37279703,Україна,Транспортні послуги,26002532154,state,300.00,"ПРаТ ""УХЛ-МАШ""",14311749,юридична особа
РПЛ,"Київ, вулиця Казимира Малевича, 66",73,2016-12-07,1365,Придбання меблів,Придбання меблів,390055,Центральний офіс,37279703,Україна,За сейф,26002532154,state,4920.00,"ПРаТ ""УХЛ-МАШ""",14311749,юридична особа
РПЛ,"Київ, вулиця Казимира Малевича, 66",73,2016-12-07,1364,Придбання меблів,Придбання меблів,390054,Центральний офіс,37279703,Україна,За сейф,26002532154,state,4020.00,"ПРаТ ""УХЛ-МАШ""",14311749,юридична особа
РПЛ,"Київ, вулиця Казимира Малевича, 66",73,2016-12-07,1363,Придбання меблів,Придбання меблів,390053,Центральний офіс,37279703,Україна,За шафу бухгалтерську,26002532154,state,3528.00,"ПРаТ ""УХЛ-МАШ""",14311749,юридична особа
РПЛ,"Київ, вулиця Червоноткацька, 69",57,2016-12-06,1361,Виготовлення брендованої продукції,"Виготовлення брендованої продукції (футболки, кепки, парасольки)",390052,Центральний офіс,37279703,Україна,За палатки,26002532154,state,328000.00,"ТОВ ""ДШК імені Яськова""",34183584,юридична особа
РПЛ,"Київ, вулиця Червоноткацька, 69",57,2016-12-06,1362,Виготовлення брендованої продукції,"Виготовлення брендованої продукції (футболки, кепки, парасольки)",390051,Центральний офіс,37279703,Україна,За палатки,26002532154,state,184000.00,"ТОВ ""ДШК імені Яськова""",34183584,юридична особа
РПЛ,"Київ, вулиця Червоноткацька, 69",57,2016-12-06,1359,Виготовлення брендованої продукції,"Виготовлення брендованої продукції (футболки, кепки, парасольки)",390050,Центральний офіс,37279703,Україна,За палатки,26002532154,state,328000.00,"ТОВ ""ДШК імені Яськова""",34183584,юридична особа
РПЛ,"Київ, вулиця Червоноткацька, 69",57,2016-12-06,1360,Виготовлення брендованої продукції,"Виготовлення брендованої продукції (футболки, кепки, парасольки)",390049,Центральний офіс,37279703,Україна,За палатки,26002532154,state,328000.00,"ТОВ ""ДШК імені Яськова""",34183584,юридична особа
РПЛ,"Дніпропетровська область, Дніпро́, вулиця Калинова, 43",79,2016-12-06,1355,"Оренда будинків і приміщень та експлуатаційні витрати (прибирання, страхування орендованих будинків, охорона, сигналізація, ремонт, вивіз сміття, тощо)",Оренда нерухомості,390048,Центральний офіс,37279703,Україна,Оренда нежитлового приміщення,26002532154,state,99960.00,"ТОВ ""Наутилус-Інвест 2006""",34823774,юридична особа
РПЛ,"Київ, вулиця Академіка Туполєва, 28А",63,2016-12-06,1356,Податок на доходи,Податкові платежі,390047,Центральний офіс,37279703,Україна,Податок з доходів громадян за оренду автомобіля,26002532154,state,1440.00,УДКСУ у Шевченківському районі м. Києва,37995466,юридична особа
РПЛ,"Київ, вулиця Академіка Туполєва, 28А",61,2016-12-06,1357,Військовий збір,Податкові платежі,390046,Центральний офіс,37279703,Україна,Військовий збір,26002532154,state,120.00,УДКСУ у Шевченківському районі м. Києва,37995466,юридична особа
РПЛ,"Київська обл., Макарівський район, Макарів",77,2016-12-06,1358,"Оренда, ремонт та обслуговування автомобілів","Оренда, ремонт та обслуговування автомобілів",389926,Центральний офіс,37279703,Україна,Оренда автомобіля,26002532154,state,6440.00,Гулак Олександр Миколайович,,фізична особа
РПЛ,"Київ, Печерський узвіз, 3",72,2016-12-01,1354,"Придбання, ремонт офісної техніки та програмного забезпечення (Бухгалтерські програми, Ліга.закон, домени)",Придбання офісної техніки та програмного забезпечення,390045,Центральний офіс,37279703,Україна,За електротовари,26002532154,state,6471.00,"ТОВ ""МТП-груп""",39040187,юридична особа
РПЛ,"Київ, вулиця Академіка Єфремова, 9, 130",57,2016-12-01,1353,Виготовлення брендованої продукції,"Виготовлення брендованої продукції (футболки, кепки, парасольки)",390044,Центральний офіс,37279703,Україна,За приладдя,26002532154,state,6450.00,Данілов Є О,3063214952,фізична особа
РПЛ,"Київ, Печерський узвіз, 3",72,2016-11-30,1352,"Придбання, ремонт офісної техніки та програмного забезпечення (Бухгалтерські програми, Ліга.закон, домени)",Придбання офісної техніки та програмного забезпечення,390043,Центральний офіс,37279703,Україна,За обладнання,26002532154,state,25956.00,"ТОВ ""МТП-груп""",39040187,юридична особа
РПЛ,"Київ, вулиця Червоноткацька, 69",57,2016-11-30,1351,Виготовлення брендованої продукції,"Виготовлення брендованої продукції (футболки, кепки, парасольки)",390042,Центральний офіс,37279703,Україна,За прапори,26002532154,state,1710.00,"ТОВ ""ДШК імені Яськова""",34183584,юридична особа
РПЛ,"Київ, вулиця Костянтинівська, 2А",72,2016-11-29,1350,"Придбання, ремонт офісної техніки та програмного забезпечення (Бухгалтерські програми, Ліга.закон, домени)",Придбання офісної техніки та програмного забезпечення,390041,Центральний офіс,37279703,Україна,За обладнання,26002532154,state,5150.98,"ТОВ ""ІНДІГО МʼЮЗІК КИЇВ""",36336977,юридична особа
РПЛ,"Київ, вулиця Миколи Ушакова, 16А, 65",43,2016-11-29,1349,Інші витрати,Інші витрати,390040,Центральний офіс,37279703,Україна,За матеріали,26002532154,state,2782.50,Касьянова Вілена Євгенівна,2595423224,фізична особа
РПЛ,"Київ, вулиця Академіка Єфремова, 9, 130",57,2016-11-29,1348,Виготовлення брендованої продукції,"Виготовлення брендованої продукції (футболки, кепки, парасольки)",390039,Центральний офіс,37279703,Україна,За прапори,26002532154,state,10200.00,Данілов Є О,3063214952,фізична особа
РПЛ,"Київ, вулиця Академіка Єфремова, 9, 130",57,2016-11-29,1347,Виготовлення брендованої продукції,"Виготовлення брендованої продукції (футболки, кепки, парасольки)",390038,Центральний офіс,37279703,Україна,За приладдя,26002532154,state,17820.00,Данілов Є О,3063214952,фізична особа
РПЛ,"Київ, вулиця Червоноткацька, 69",57,2016-11-29,1345,Виготовлення брендованої продукції,"Виготовлення брендованої продукції (футболки, кепки, парасольки)",390037,Центральний офіс,37279703,Україна,За прапори,26002532154,state,8550.00,"ТОВ ""ДШК імені Яськова""",34183584,юридична особа
РПЛ,"Київ, вулиця Миколи Лєскова, 9",70,2016-11-29,bn,Банківські послуги,Інші витрати,390036,Центральний офіс,37279703,Україна,Комісія за перекази,26002532154,state,10.00,"АТ ""Райффайзен банк Аваль""",14305909,юридична особа
РПЛ,"Київ, вулиця Миколи Лєскова, 9",70,2016-11-29,Б/н,Банківські послуги,Інші витрати,389923,Центральний офіс,37279703,Україна,Комісія за послуги,26000368825,current,77.00,"АТ ""Райффайзен банк Аваль""",14305909,юридична особа
РПЛ,"Київ, вулиця Миколи Лєскова, 9",70,2016-11-29,Б/н,Банківські послуги,Інші витрати,389918,Центральний офіс,37279703,Україна,Комісія за послуги,26000368825,current,200.00,"АТ ""Райффайзен банк Аваль""",14305909,юридична особа
РПЛ,"Київ, вулиця Миколи Лєскова, 9",70,2016-11-29,Б/н,Банківські послуги,Інші витрати,389917,Центральний офіс,37279703,Україна,Комісія за послуги,26000368825,current,23.00,"АТ ""Райффайзен банк Аваль""",14305909,юридична особа
РПЛ,"Київ, вулиця Червоноткацька, 69",57,2016-11-28,1344,Виготовлення брендованої продукції,"Виготовлення брендованої продукції (футболки, кепки, парасольки)",390035,Центральний офіс,37279703,Україна,За прапори,26002532154,state,480100.00,"ТОВ ""ДШК імені Яськова""",34183584,юридична особа
РПЛ,"Київ, вулиця Данила Щербаківського, 4",58,2016-11-25,1343,"Виготовлення друкованих матеріалів (плакатів, листівок, буклетів та інших агітаційних матеріалів)",Друкована агітація,390034,Центральний офіс,37279703,Україна,За друк газети,26002532154,state,548000.00,"ТОВ ""Інтерконтиненталь-Україна""",35632634,юридична особа
РПЛ,"Київ, вулиця Костянтинівська, 2А",72,2016-11-25,1342,"Придбання, ремонт офісної техніки та програмного забезпечення (Бухгалтерські програми, Ліга.закон, домени)",Придбання офісної техніки та програмного забезпечення,390033,Центральний офіс,37279703,Україна,За обладнання,26002532154,state,3870.92,"ТОВ ""ІНДІГО МʼЮЗІК КИЇВ""",36336977,юридична особа
РПЛ,"Київ, вулиця Казимира Малевича, 66",73,2016-11-24,1341,Придбання меблів,Придбання меблів,390032,Центральний офіс,37279703,Україна,Шафи бухгалтерські,26002532154,state,3459.00,"ПРаТ ""УХЛ-МАШ""",14311749,юридична особа
РПЛ,"Київ, вулиця Казимира Малевича, 66",73,2016-11-24,1340,Придбання меблів,Придбання меблів,390031,Центральний офіс,37279703,Україна,Шафи бухгалтерські,26002532154,state,2394.00,"ПРаТ ""УХЛ-МАШ""",14311749,юридична особа
РПЛ,"Київ, вулиця Казимира Малевича, 66",80,2016-11-24,1339,"Транспортні послуги (квитки, пасажирські перевезення і т.д.)","Транспортні послуги (квитки, пасажирські перевезення і т.д.)",390030,Центральний офіс,37279703,Україна,Транспортні послуги,26002532154,state,380.00,"ПРаТ ""УХЛ-МАШ""",14311749,юридична особа
РПЛ,"Київ, вулиця Машинобудівна, 44",72,2016-11-24,1338,"Придбання, ремонт офісної техніки та програмного забезпечення (Бухгалтерські програми, Ліга.закон, домени)",Придбання офісної техніки та програмного забезпечення,389916,Центральний офіс,37279703,Україна,"За електротовари , інвентарь",26000368825,current,4393.00,"ТОВ ""НЕДОРОГО""",38977343,юридична особа
РПЛ,"Київ, вулиця Кулібіна, 5, 57",43,2016-11-22,1336,Інші витрати,Інші витрати,390029,Центральний офіс,37279703,Україна,За обладнання,26002532154,state,14850.00,Швець Олег Васильович,2926909772,фізична особа
РПЛ,"Київ, вулиця Костянтинівська, 2А",72,2016-11-22,1335,"Придбання, ремонт офісної техніки та програмного забезпечення (Бухгалтерські програми, Ліга.закон, домени)",Придбання офісної техніки та програмного забезпечення,390028,Центральний офіс,37279703,Україна,За обладнання,26002532154,state,7701.54,"ТОВ ""ІНДІГО МʼЮЗІК КИЇВ""",36336977,юридична особа
РПЛ,"Київ, Печерський узвіз, 3",72,2016-11-22,1337,"Придбання, ремонт офісної техніки та програмного забезпечення (Бухгалтерські програми, Ліга.закон, домени)",Придбання офісної техніки та програмного забезпечення,389919,Центральний офіс,37279703,Україна,"За принтер, кабель",26000368825,current,49239.00,"ТОВ ""МТП-груп""",39040187,юридична особа
РПЛ,"Київ, вулиця Костянтинівська, 2А",72,2016-11-22,1334,"Придбання, ремонт офісної техніки та програмного забезпечення (Бухгалтерські програми, Ліга.закон, домени)",Придбання офісної техніки та програмного забезпечення,389915,Центральний офіс,37279703,Україна,За обладнання,26000368825,current,21735.50,"ТОВ ""ІНДІГО МʼЮЗІК КИЇВ""",36336977,юридична особа
РПЛ,"Київ, вулиця Костянтинівська, 2А",72,2016-11-21,1329,"Придбання, ремонт офісної техніки та програмного забезпечення (Бухгалтерські програми, Ліга.закон, домени)",Придбання офісної техніки та програмного забезпечення,390027,Центральний офіс,37279703,Україна,За обладнання,26002532154,state,23509.94,"ТОВ ""ІНДІГО МʼЮЗІК КИЇВ""",36336977,юридична особа
РПЛ,"Київ, вулиця Костянтинівська, 2А",72,2016-11-21,1328,"Придбання, ремонт офісної техніки та програмного забезпечення (Бухгалтерські програми, Ліга.закон, домени)",Придбання офісної техніки та програмного забезпечення,389914,Центральний офіс,37279703,Україна,За обладнання,26000368825,current,67753.99,"ТОВ ""ІНДІГО МʼЮЗІК КИЇВ""",36336977,юридична особа
РПЛ,"Вінницька область, Барський район, Бар, вулиця Героїв Майдану, 6",59,2016-11-21,1333,Грошова застава,Грошова застава,389913,Центральний офіс,37279703,Україна,Грошова застава місцевої організації РПЛ за участь у місцевих виборах,26000368825,current,805.00,Барська МВК,34081082,юридична особа
РПЛ,"Сумська область, Ямпільський район, Дружба",59,2016-11-21,1332,Грошова застава,Грошова застава,389912,Центральний офіс,37279703,Україна,Грошова застава місцевої організації РПЛ за участь у місцевих виборах,26000368825,current,253.00,Дружбівська міська виборча комісія,34112838,юридична особа
РПЛ,"Донецька область, Миколаївка, вулиця Енергетиків",59,2016-11-21,1331,Грошова застава,Грошова застава,389911,Центральний офіс,37279703,Україна,Грошова застава місцевої організації РПЛ за участь у місцевих виборах,26000368825,current,692.00,Миколаївська МВК Словʼянського р-ну Д/о.,40946796,юридична особа
РПЛ,"Житомирська область, Коростишівський район, Коростишів, вулиця Володимирська, 1",59,2016-11-21,1330,Грошова застава,Грошова застава,389910,Центральний офіс,37279703,Україна,Грошова застава місцевої організації РПЛ за участь у місцевих виборах,26000368825,current,1307.00,Коростишівська МВК Коростишівського району Житомирської області,34022053,юридична особа
РПЛ,"Київ, вулиця Академіка Єфремова, 9, 130",57,2016-11-18,1310,Виготовлення брендованої продукції,"Виготовлення брендованої продукції (футболки, кепки, парасольки)",390026,Центральний офіс,37279703,Україна,За прапори,26002532154,state,14800.00,Данілов Є О,3063214952,фізична особа
РПЛ,"Чернівецька область, Вижницький район, Вижниця, вулиця Українська",59,2016-11-18,1327,Грошова застава,Грошова застава,389909,Центральний офіс,37279703,Україна,Грошова застава місцевої організації РПЛ за участь у місцевих виборах,26000368825,current,855.00,Вижницька МВК,37984590,юридична особа
РПЛ,"Чернівецька область, Чернівці, вулиця Героїв Майдану, 2",59,2016-11-18,1326,Грошова застава,Грошова застава,389908,Центральний офіс,37279703,Україна,Грошова застава місцевої організації РПЛ за участь у місцевих виборах,26000368825,current,493.00,Вашківецька міська виборча комісія Вижницького району Чернівецької області,34177607,юридична особа
РПЛ,"Житомирська область, Олевський район, Олевськ, вулиця Володимирська, 2",59,2016-11-18,1325,Грошова застава,Грошова застава,389907,Центральний офіс,37279703,Україна,Грошова застава місцевої організації РПЛ за участь у місцевих виборах,26000368825,current,1554.00,Олевська міська виборча комісія,34008945,юридична особа
РПЛ,"Житомирська область, Баранівський район, Баранівка, вулиця Соборна, 20",59,2016-11-18,1324,Грошова застава,Грошова застава,389906,Центральний офіс,37279703,Україна,Грошова застава місцевої організації РПЛ за участь у місцевих виборах,26000368825,current,1092.00,Баранівська міська виборча комісія,33985192,юридична особа
РПЛ,"Вінницька область, Вінниця, вулиця Соборна, 26",59,2016-11-18,1323,Грошова застава,Грошова застава,389905,Центральний офіс,37279703,Україна,Грошова застава місцевої організації РПЛ за участь у місцевих виборах,26000368825,current,659.00,Немирівська МВК,33845179,юридична особа
РПЛ,"Черкаська область, Тальнівський район, Тальне, вулиця Соборна, 30",59,2016-11-18,1322,Грошова застава,Грошова застава,389904,Центральний офіс,37279703,Україна,Грошова застава місцевої організації РПЛ за участь у місцевих виборах,26000368825,current,832.00,Тальнівська міська виборча комісія Тальнівського району Черкаської області,34089249,юридична особа
РПЛ,"Сумська область, Ямпільський район, Дружба",59,2016-11-18,1321,Грошова застава,Грошова застава,389903,Центральний офіс,37279703,Україна,Грошова застава місцевої організації РПЛ за участь у місцевих виборах,26000368825,current,253.00,Дружбівська міська виборча комісія,34112838,юридична особа
РПЛ,"Миколаївська область, Баштанський район, Баштанка",59,2016-11-18,1320,Грошова застава,Грошова застава,389902,Центральний офіс,37279703,Україна,Грошова застава місцевої організації РПЛ за участь у місцевих виборах,26000368825,current,1037.00,Багитанська МВК,33928589,юридична особа
РПЛ,"Львівська область, Мостиський район, Судова Вишня, площа Івана Франка, 14а",59,2016-11-18,1319,Грошова застава,Грошова застава,389901,Центральний офіс,37279703,Україна,Грошова застава місцевої організації РПЛ за участь у місцевих виборах,26000368825,current,515.00,Судововишнянська МВК Мостиського району Львівської області,34102945,юридична особа
РПЛ,"Львівська область, Мостиський район, Мостиська, вулиця Михайла Грушевського, 6",59,2016-11-18,1318,Грошова застава,Грошова застава,389900,Центральний офіс,37279703,Україна,Грошова застава місцевої організації РПЛ за участь у місцевих виборах,26000368825,current,1012.00,Мостиська МВК Мостиського району Львівської області,34102793,юридична особа
РПЛ,"Івано-Франківська, Тлумацький район, Тлумач",59,2016-11-18,1317,Грошова застава,Грошова застава,389899,Центральний офіс,37279703,Україна,Грошова застава місцевої організації РПЛ за участь у місцевих виборах,26000368825,current,822.00,Тлумацька міська виборча комісія Тлумацького району Івано-Франківської області,37348572,юридична особа
РПЛ,"Житомирська область, Олевський район, Олевськ, вулиця Володимирська, 2",59,2016-11-18,1316,Грошова застава,Грошова застава,389898,Центральний офіс,37279703,Україна,Грошова застава місцевої організації РПЛ за участь у місцевих виборах,26000368825,current,1554.00,Олевська міська виборча комісія,34008945,юридична особа
РПЛ,"Житомирська область, Баранівський район, Баранівка, вулиця Соборна, 20",59,2016-11-18,1315,Грошова застава,Грошова застава,389897,Центральний офіс,37279703,Україна,Грошова застава місцевої організації РПЛ за участь у місцевих виборах,26000368825,current,1092.00,Баранівська міська виборча комісія,33985192,юридична особа
РПЛ,"Вінницька область, Тульчинський район, Тульчин",59,2016-11-18,1314,Грошова застава,Грошова застава,389896,Центральний офіс,37279703,Україна,Грошова застава місцевої організації РПЛ за участь у місцевих виборах,26000368825,current,969.00,Тульчинська МВК Тульчинського р-ну В/о,33868277,юридична особа
РПЛ,"Вінницька область, Вінниця, вулиця Соборна, 26",59,2016-11-18,1313,Грошова застава,Грошова застава,389895,Центральний офіс,37279703,Україна,Грошова застава місцевої організації РПЛ за участь у місцевих виборах,26000368825,current,659.00,Немирівська МВК,33845179,юридична особа
РПЛ,"Вінницька область, Барський район, Бар, вулиця Героїв Майдану, 6",59,2016-11-18,1312,Грошова застава,Грошова застава,389894,Центральний офіс,37279703,Україна,Грошова застава місцевої організації РПЛ за участь у місцевих виборах,26000368825,current,805.00,Барська МВК,34081082,юридична особа
РПЛ,"Чернігівська область, Корюківський район, Корюківка, улица Шевченко, 60",59,2016-11-18,1311,Грошова застава,Грошова застава,389893,Центральний офіс,37279703,Україна,Г рошова застава місц.організ РПЛ за участь.у місц. Вибо,26000368825,current,850.00,Корюківська МВК,33903778,юридична особа
РПЛ,"Одеська область, Одеса, вулиця Садова, 10",75,2016-11-17,1309,Поштові послуги та поширення друкованих матеріалів,Поштові послуги та поширення друкованих матеріалів,390025,Центральний офіс,37279703,Україна,Послуги по доставці газети,26002532154,state,18012.00,"Одеська дирекція ПАТ ""Укрпошта""",22485297,юридична особа
РПЛ,"Чернігівська область, Носівський район, Носівка, вул. Центральна, 20",59,2016-11-17,1308,Грошова застава,Грошова застава,389892,Центральний офіс,37279703,Україна,Грошова застава місцевої організації РПЛ за участь у місцевих виборах,26000368825,current,1020.00,Носівська МВК,34209434,юридична особа
РПЛ,"Чернігівська область, Носівський район, Носівка, вул. Центральна, 20",59,2016-11-17,1307,Грошова застава,Грошова застава,389891,Центральний офіс,37279703,Україна,Грошова застава місцевої організації РПЛ за участь у місцевих виборах,26000368825,current,1020.00,Носівська МВК,34209434,юридична особа
РПЛ,"Чернівецька область, Сторожинецький район, Сторожинець, вулиця Михайла Грушевського, 6",59,2016-11-17,1304,Грошова застава,Грошова застава,389890,Центральний офіс,37279703,Україна,Грошова застава місцевої організації РПЛ за участь у місцевих виборах,26000368825,current,1522.00,Сторожинецька МВК ОТГ,34177921,юридична особа
РПЛ,"Чернігівська область, Сновський район, Сновськ, вулиця Незалежності, 1",59,2016-11-17,1305,Грошова застава,Грошова застава,389889,Центральний офіс,37279703,Україна,Грошова застава місцевої організації РПЛ за участь у місцевих виборах,26000368825,current,1134.00,Сновська МВК,34208839,юридична особа
РПЛ,"Чернігівська область, Сновський район, Сновськ, вулиця Незалежності, 1",59,2016-11-17,1306,Грошова застава,Грошова застава,389888,Центральний офіс,37279703,Україна,Грошова застава місцевої організації РПЛ за участь у місцевих виборах,26000368825,current,1134.00,Сновська МВК,34208839,юридична особа
РПЛ,"Одеська область, Одеса, вулиця Мечникова, 132",72,2016-11-16,1301,"Придбання, ремонт офісної техніки та програмного забезпечення (Бухгалтерські програми, Ліга.закон, домени)",Придбання офісної техніки та програмного забезпечення,390024,Центральний офіс,37279703,Україна,За обладнання,26002532154,state,71280.00,"ТОВ ""Відеосолюшенс груп""",38942059,юридична особа
РПЛ,"Запорізька область, Приморський район, Приморськ",59,2016-11-16,1303,Грошова застава,Грошова застава,389887,Центральний офіс,37279703,Україна,Грошова застава місцевої організації РПЛ за участь у місцевих виборах,26000368825,current,718.00,Приморська МВК,34126945,юридична особа
РПЛ,"Київ, вулиця Академіка Єфремова, 9, 130",57,2016-11-15,1302,Виготовлення брендованої продукції,"Виготовлення брендованої продукції (футболки, кепки, парасольки)",390023,Центральний офіс,37279703,Україна,За приладдя,26002532154,state,6400.00,Данілов Є О,3063214952,фізична особа
РПЛ,"Київ, вулиця Академіка Єфремова, 9, 130",57,2016-11-15,1300,Виготовлення брендованої продукції,"Виготовлення брендованої продукції (футболки, кепки, парасольки)",390022,Центральний офіс,37279703,Україна,За приладдя,26002532154,state,68400.00,Данілов Є О,3063214952,фізична особа
РПЛ,"Київ, вулиця Академіка Єфремова, 9, 130",57,2016-11-15,1299,Виготовлення брендованої продукції,"Виготовлення брендованої продукції (футболки, кепки, парасольки)",390021,Центральний офіс,37279703,Україна,За приладдя,26002532154,state,60300.00,Данілов Є О,3063214952,фізична особа
РПЛ,"Черкаська область, Сміла, вулиця Остапа Вишні, 5",71,2016-11-15,1296,Придбання рухомого майна (окрім транспортних засобів),Інші витрати,390020,Центральний офіс,37279703,Україна,За обладнання,26002532154,state,6900.00,Маринич Іван Миколайович,1923415371,фізична особа
РПЛ,"Черкаська область, Сміла, вулиця Остапа Вишні, 5",71,2016-11-15,1297,Придбання рухомого майна (окрім транспортних засобів),Інші витрати,390019,Центральний офіс,37279703,Україна,За обладнання,26002532154,state,4089.00,Маринич Іван Миколайович,1923415371,фізична особа
РПЛ,"Чернігівська область, Козелецький район, Остер, вул.Незалежності, 21",59,2016-11-15,1298,Грошова застава,Грошова застава,389886,Центральний офіс,37279703,Україна,Грошова застава місцевої організації РПЛ за участь у місцевих виборах,26000368825,current,370.00,Остерська МВК,34179342,юридична особа
РПЛ,"Дніпропетровська область, Дніпро́, вулиця Калинова, 43",79,2016-11-14,1293,"Оренда будинків і приміщень та експлуатаційні витрати (прибирання, страхування орендованих будинків, охорона, сигналізація, ремонт, вивіз сміття, тощо)",Оренда нерухомості,390018,Центральний офіс,37279703,Україна,Оренда нежитлового приміщення,26002532154,state,99960.00,"ТОВ ""Наутилус-Інвест 2006""",34823774,юридична особа
РПЛ,"Дніпропетровська область, Дніпро́, вулиця Калинова, 43",79,2016-11-14,1294,"Оренда будинків і приміщень та експлуатаційні витрати (прибирання, страхування орендованих будинків, охорона, сигналізація, ремонт, вивіз сміття, тощо)",Оренда нерухомості,390017,Центральний офіс,37279703,Україна,Компесація комунальних послуг,26002532154,state,5599.07,"ТОВ ""Наутилус-Інвест 2006""",34823774,юридична особа
РПЛ,"Київ, вулиця Академіка Туполєва, 28А",63,2016-11-14,1289,Податок на доходи,Податкові платежі,390016,Центральний офіс,37279703,Україна,Податок з доходів громадян за оренду автомобіля,26002532154,state,1440.00,УДКСУ у Шевченківському районі м. Києва,37995466,юридична особа
РПЛ,"Київ, вулиця Академіка Туполєва, 28А",61,2016-11-14,1290,Військовий збір,Податкові платежі,390015,Центральний офіс,37279703,Україна,Військовий збір,26002532154,state,120.00,УДКСУ у Шевченківському районі м. Києва,37995466,юридична особа
РПЛ,"Київська обл., Макарівський район, Макарів",77,2016-11-14,1291,"Оренда, ремонт та обслуговування автомобілів","Оренда, ремонт та обслуговування автомобілів",389925,Центральний офіс,37279703,Україна,Оренда автомобіля,26002532154,state,6440.00,Гулак Олександр Миколайович,,фізична особа
РПЛ,"Чернігівська область, Бахмацький район, Батурин, вулиця Партизанська, 14",59,2016-11-14,1295,Грошова застава,Грошова застава,389885,Центральний офіс,37279703,Україна,Грошова застава місцевої організації РПЛ за участь у місцевих виборах,26000368825,current,183.00,Батуринська МВК,33983064,юридична особа
РПЛ,"Чернігівська область, Козелецький район, Остер, вул.Незалежності, 21",59,2016-11-14,1292,Грошова застава,Грошова застава,389884,Центральний офіс,37279703,Україна,Грошова застава місцевої організації РПЛ за участь у місцевих виборах,26000368825,current,370.00,Остерська МВК,34179342,юридична особа
РПЛ,"Тернопільська область, Борщівський район, Борщів, вулиця М. Грушевського",59,2016-11-10,1288,Грошова застава,Грошова застава,389883,Центральний офіс,37279703,Україна,Грошова застава місцевої організації РПЛ за участь у місцевих виборах,26000368825,current,804.00,Борщівська МВК Борщівського району Тернопільської області,34035350,юридична особа
РПЛ,"Київ, вулиця Данила Щербаківського, 4",58,2016-11-04,1287,"Виготовлення друкованих матеріалів (плакатів, листівок, буклетів та інших агітаційних матеріалів)",Друкована агітація,390014,Центральний офіс,37279703,Україна,За друк газети,26002532154,state,548000.00,"ТОВ ""Інтерконтиненталь-Україна""",35632634,юридична особа
РПЛ,"Київ, вулиця Миколи Лєскова, 9",70,2016-10-28,б/н,Банківські послуги,Інші витрати,389882,Центральний офіс,37279703,Україна,Комісія за користанням пакетом послуг,26000368825,current,200.00,"АТ ""Райффайзен банк Аваль""",14305909,юридична особа
РПЛ,"Дніпропетровська область, Дніпро́, вулиця Калинова, 43",79,2016-10-20,1286,"Оренда будинків і приміщень та експлуатаційні витрати (прибирання, страхування орендованих будинків, охорона, сигналізація, ремонт, вивіз сміття, тощо)",Оренда нерухомості,390013,Центральний офіс,37279703,Україна,Компесація комунальних послуг,26002532154,state,8678.09,"ТОВ ""Наутилус-Інвест 2006""",34823774,юридична особа
РПЛ,"Київ, вулиця Академіка Туполєва, 28А",61,2016-10-10,1284,Військовий збір,Податкові платежі,390012,Центральний офіс,37279703,Україна,Військовий збір,26002532154,state,120.00,УДКСУ у Шевченківському районі м. Києва,37995466,юридична особа
РПЛ,"Київ, вулиця Академіка Туполєва, 28А",63,2016-10-10,1283,Податок на доходи,Податкові платежі,390011,Центральний офіс,37279703,Україна,Податок з доходів громадян за оренду автомобіля,26002532154,state,1440.00,УДКСУ у Шевченківському районі м. Києва,37995466,юридична особа
РПЛ,"Дніпропетровська область, Дніпро́, вулиця Калинова, 43",79,2016-10-10,1282,"Оренда будинків і приміщень та експлуатаційні витрати (прибирання, страхування орендованих будинків, охорона, сигналізація, ремонт, вивіз сміття, тощо)",Оренда нерухомості,390010,Центральний офіс,37279703,Україна,Оренда нежитлового приміщення,26002532154,state,99960.00,"ТОВ ""Наутилус-Інвест 2006""",34823774,юридична особа
РПЛ,"Київська обл., Макарівський район, Макарів",77,2016-10-10,1285,"Оренда, ремонт та обслуговування автомобілів","Оренда, ремонт та обслуговування автомобілів",389924,Центральний офіс,37279703,Україна,Оренда автомобіля,26002532154,state,6440.00,Гулак Олександр Миколайович,,фізична особа
РПЛ,"Київ, вулиця Миколи Лєскова, 9",70,2016-09-29,б/н,Банківські послуги,Інші витрати,389881,Центральний офіс,37279703,Україна,Комісія за користанням пакетом послуг,26000368825,current,200.00,"АТ ""Райффайзен банк Аваль""",14305909,юридична особа
РПЛ,"Київська обл., Бровари, вулиця Сергія Москаленка, 16",49,2016-09-13,1278,Публікування матеріалів у друкованих ЗМІ,Реклама в друкованих ЗМІ,389880,Центральний офіс,37279703,Україна,"За друк газети ""Боротьба""",26000368825,current,6500.04,"ТОВ ""Український Газетний синдикат""",03969978,юридична особа
РПЛ,"Київ, вулиця Академіка Туполєва, 28А",63,2016-09-13,1279,Податок на доходи,Податкові платежі,389879,Центральний офіс,37279703,Україна,Податок з доходів громадян за оренду автомобіля,26000368825,current,1440.00,УДКСУ у Шевченківському районі м. Києва,37995466,юридична особа
РПЛ,"Київ, вулиця Академіка Туполєва, 28А",61,2016-09-13,1280,Військовий збір,Податкові платежі,389878,Центральний офіс,37279703,Україна,Військовий збір,26000368825,current,120.00,УДКСУ у Шевченківському районі м. Києва,37995466,юридична особа
РПЛ,"Київська обл., Макарівський район, Макарів",77,2016-09-13,1281,"Оренда, ремонт та обслуговування автомобілів","Оренда, ремонт та обслуговування автомобілів",389841,Центральний офіс,37279703,Україна,Оренда автомобіля,26000368825,current,6440.00,Гулак Олександр Миколайович,,фізична особа
РПЛ,"Дніпропетровська область, Дніпро́, вулиця Калинова, 43",79,2016-09-07,1277,"Оренда будинків і приміщень та експлуатаційні витрати (прибирання, страхування орендованих будинків, охорона, сигналізація, ремонт, вивіз сміття, тощо)",Оренда нерухомості,389877,Центральний офіс,37279703,Україна,За оренду нежитлового приміщення в серпні,26000368825,current,99960.00,"ТОВ ""Наутилус-Інвест 2006""",34823774,юридична особа
РПЛ,"Київ, вулиця Миколи Лєскова, 9",70,2016-08-30,б/н,Банківські послуги,Інші витрати,389876,Центральний офіс,37279703,Україна,Комісія за користанням пакетом послуг,26000368825,current,200.00,"АТ ""Райффайзен банк Аваль""",14305909,юридична особа
РПЛ,"Дніпропетровська область, Дніпро́, вулиця Калинова, 43",79,2016-08-16,1276,"Оренда будинків і приміщень та експлуатаційні витрати (прибирання, страхування орендованих будинків, охорона, сигналізація, ремонт, вивіз сміття, тощо)",Оренда нерухомості,389875,Центральний офіс,37279703,Україна,Гарантійний платіж за оренду нежитлового приміщення,26000368825,current,99960.00,"ТОВ ""Наутилус-Інвест 2006""",34823774,юридична особа
РПЛ,"Дніпропетровська область, Дніпро́, вулиця Калинова, 43",79,2016-08-16,1275,"Оренда будинків і приміщень та експлуатаційні витрати (прибирання, страхування орендованих будинків, охорона, сигналізація, ремонт, вивіз сміття, тощо)",Оренда нерухомості,389874,Центральний офіс,37279703,Україна,За оренду нежитлового приміщення в серпні,26000368825,current,99960.00,"ТОВ ""Наутилус-Інвест 2006""",34823774,юридична особа
РПЛ,"Дніпропетровська область, Дніпро́, вулиця Калинова, 43",79,2016-08-16,1274,"Оренда будинків і приміщень та експлуатаційні витрати (прибирання, страхування орендованих будинків, охорона, сигналізація, ремонт, вивіз сміття, тощо)",Оренда нерухомості,389873,Центральний офіс,37279703,Україна,За оренду нежитлового приміщення в липні,26000368825,current,99960.00,"ТОВ ""Наутилус-Інвест 2006""",34823774,юридична особа
РПЛ,"Київ, вулиця Академіка Туполєва, 28А",63,2016-08-10,1271,Податок на доходи,Податкові платежі,389872,Центральний офіс,37279703,Україна,Податок з доходів громадян за оренду автомобіля,26000368825,current,1440.00,УДКСУ у Шевченківському районі м. Києва,37995466,юридична особа
РПЛ,"Київ, вулиця Академіка Туполєва, 28А",61,2016-08-10,1272,Військовий збір,Податкові платежі,389871,Центральний офіс,37279703,Україна,Військовий збір,26000368825,current,120.00,УДКСУ у Шевченківському районі м. Києва,37995466,юридична особа
РПЛ,"Київська обл., Макарівський район, Макарів",77,2016-08-10,1273,"Оренда, ремонт та обслуговування автомобілів","Оренда, ремонт та обслуговування автомобілів",389840,Центральний офіс,37279703,Україна,Оренда автомобіля,26000368825,current,6440.00,Гулак Олександр Миколайович,,фізична особа
РПЛ,"Вінницька область, Іллінецький район, Кальник, вулиця Леніна, 19",59,2016-08-03,1270,Грошова застава,Грошова застава,389870,Центральний офіс,37279703,Україна,Грошова застава міської організації за висунутий список канд. У депутати міської ради,26000368825,current,812.00,Іллінецька міська виборча комісія,34026990,юридична особа
РПЛ,"Київ, вулиця Миколи Лєскова, 9",70,2016-07-28,б/н,Банківські послуги,Інші витрати,389869,Центральний офіс,37279703,Україна,Комісія за користанням пакетом послуг,26000368825,current,200.00,"АТ ""Райффайзен банк Аваль""",14305909,юридична особа
РПЛ,"Київ, вулиця Миколи Лєскова, 9",70,2016-07-20,1ВБ464298,Банківські послуги,Інші витрати,389868,Центральний офіс,37279703,Україна,Комісія за довідки про рух грошових коштів,26000368825,current,600.00,"АТ ""Райффайзен банк Аваль""",14305909,юридична особа
РПЛ,"Київ, вулиця Академіка Туполєва, 28А",63,2016-07-11,1267,Податок на доходи,Податкові платежі,389867,Центральний офіс,37279703,Україна,Податок з доходів громадян за оренду автомобіля,26000368825,current,1440.00,УДКСУ у Шевченківському районі м. Києва,37995466,юридична особа
РПЛ,"Київ, вулиця Академіка Туполєва, 28А",61,2016-07-11,1269,Військовий збір,Податкові платежі,389866,Центральний офіс,37279703,Україна,Військовий збір,26000368825,current,120.00,УДКСУ у Шевченківському районі м. Києва,37995466,юридична особа
РПЛ,"Київська обл., Макарівський район, Макарів",77,2016-07-11,1268,"Оренда, ремонт та обслуговування автомобілів","Оренда, ремонт та обслуговування автомобілів",389839,Центральний офіс,37279703,Україна,Оренда автомобіля,26000368825,current,6440.00,Гулак Олександр Миколайович,,фізична особа
РПЛ,"Харківська область, Харківський район, Мерефа, Дніпропетровська вулиця, 213",59,2016-07-04,1266,Грошова застава,Грошова застава,389865,Центральний офіс,37279703,Україна,Г рошова застава міської організації за висунутого кандидата на посаду міського голови,26000368825,current,1351.00,Мерефʼянська міська виборча комісія,34056370,юридична особа
РПЛ,"Харківська область, Харківський район, Мерефа, Дніпропетровська вулиця, 213",59,2016-07-04,1265,Грошова застава,Грошова застава,389864,Центральний офіс,37279703,Україна,Грошова застава міської організації за висунутий список кандидатів у депутати міськох ради,26000368825,current,1351.00,Мерефʼянська міська виборча комісія,34056370,юридична особа
РПЛ,"Київ, вулиця Миколи Лєскова, 9",70,2016-06-29,б/н,Банківські послуги,Інші витрати,389863,Центральний офіс,37279703,Україна,Комісія за користанням пакетом послуг,26000368825,current,200.00,"АТ ""Райффайзен банк Аваль""",14305909,юридична особа
РПЛ,"Київ, вулиця Академіка Туполєва, 28А",63,2016-06-13,1263,Податок на доходи,Податкові платежі,389862,Центральний офіс,37279703,Україна,Податок з доходів громадян,26000368825,current,1440.00,УДКСУ у Шевченківському районі м. Києва,37995466,юридична особа
РПЛ,"Київська обл., Макарівський район, Макарів",77,2016-06-13,1264,"Оренда, ремонт та обслуговування автомобілів","Оренда, ремонт та обслуговування автомобілів",389838,Центральний офіс,37279703,Україна,Оренда автомобіля,26000368825,current,6440.00,Гулак Олександр Миколайович,,фізична особа
РПЛ,"Київ, площа Лесі Українки, 1",59,2016-06-07,1262,Грошова застава,Грошова застава,389861,Центральний офіс,37279703,Україна,Грошова застава за кандидата в народні депутати Бла\ти Д.Я. ʼ,26000368825,current,14500.00,Центральна виборча комісія,21661459,юридична особа
РПЛ,"Київ, площа Лесі Українки, 1",59,2016-06-07,1261,Грошова застава,Грошова застава,389860,Центральний офіс,37279703,Україна,Грошова застава за кандидата в народні депутати Плугатарьов В. А.,26000368825,current,14500.00,Центральна виборча комісія,21661459,юридична особа
РПЛ,"Київ, площа Лесі Українки, 1",59,2016-06-07,1260,Грошова застава,Грошова застава,389859,Центральний офіс,37279703,Україна,Грошова застава за кандидата в народні депутати Ляшко р.вʼ,26000368825,current,14500.00,Центральна виборча комісія,21661459,юридична особа
РПЛ,"Київ, площа Лесі Українки, 1",59,2016-06-07,1259,Грошова застава,Грошова застава,389858,Центральний офіс,37279703,Україна,Грошова застава за кандидата в народні депутати Ільченко К.П,26000368825,current,14500.00,Центральна виборча комісія,21661459,юридична особа
РПЛ,"Київ, площа Лесі Українки, 1",59,2016-06-07,1258,Грошова застава,Грошова застава,389857,Центральний офіс,37279703,Україна,Грошова застава за кандидата в народні депутати Яровата А.ГІ,26000368825,current,14500.00,Центральна виборча комісія,21661459,юридична особа
РПЛ,"Київ, площа Лесі Українки, 1",59,2016-06-07,1257,Грошова застава,Грошова застава,389856,Центральний офіс,37279703,Україна,Грошова застава за кандидата в народні депутати Пасхалов СО.,26000368825,current,14500.00,Центральна виборча комісія,21661459,юридична особа
РПЛ,"Київ, площа Лесі Українки, 1",59,2016-06-07,1256,Грошова застава,Грошова застава,389855,Центральний офіс,37279703,Україна,Грошова застава за кандидата в народні депутати Була С.В.,26000368825,current,14500.00,Центральна виборча комісія,21661459,юридична особа
РПЛ,"Київ, вулиця Миколи Лєскова, 9",70,2016-05-30,б/н,Банківські послуги,Інші витрати,389854,Центральний офіс,37279703,Україна,Комісія за користанням пакетом послуг,26000368825,current,200.00,"АТ ""Райффайзен банк Аваль""",14305909,юридична особа
РПЛ,"Київ, вулиця Інститутська, 16",58,2016-05-27,1255,"Виготовлення друкованих матеріалів (плакатів, листівок, буклетів та інших агітаційних матеріалів)",Друкована агітація,389853,Центральний офіс,37279703,Україна,Виготовлення інформаційних бюлетнів,26000368825,current,7800.00,"ТОВ ""Інтерконтиненталь-Україна""",35632634,юридична особа
РПЛ,"Київ, вулиця Академіка Туполєва, 28А",61,2016-05-11,1253,Військовий збір,Податкові платежі,389852,Центральний офіс,37279703,Україна,Військовий збір,26000368825,current,120.00,УДКСУ у Шевченківському районі м. Києва,37995466,юридична особа
РПЛ,"Київ, вулиця Академіка Туполєва, 28А",63,2016-05-11,1252,Податок на доходи,Податкові платежі,389851,Центральний офіс,37279703,Україна,Податок з доходів громадян,26000368825,current,1440.00,УДКСУ у Шевченківському районі м. Києва,37995466,юридична особа
РПЛ,"Київська обл., Макарівський район, Макарів",77,2016-05-11,1254,"Оренда, ремонт та обслуговування автомобілів","Оренда, ремонт та обслуговування автомобілів",389837,Центральний офіс,37279703,Україна,Оренда автомобіля,26000368825,current,6440.00,Гулак Олександр Миколайович,,фізична особа
РПЛ,"Київ, вулиця Миколи Лєскова, 9",70,2016-04-28,б/н,Банківські послуги,Інші витрати,389850,Центральний офіс,37279703,Україна,Комісія за користанням пакетом послуг,26000368825,current,200.00,"АТ ""Райффайзен банк Аваль""",14305909,юридична особа
РПЛ,"Київ, вулиця Саксаганського, 110",43,2016-04-22,1251,Інші витрати,Інші витрати,389849,Центральний офіс,37279703,Україна,Виконавчий збір та виконавчі витрати,26000368825,current,343.60,Шевченківський районний відділ державної виконавчої служби у м. Києві,34967593,юридична особа
РПЛ,"Донецька область, Слов'янський район, Слов'янськ",43,2016-04-22,1250,Інші витрати,Інші витрати,389848,Центральний офіс,37279703,Україна,Судовий збір,26000368825,current,2436.00,УДКСУ у м. Словʼянську Донецької області,37803368,юридична особа
РПЛ,"Запорізька область, Запоріжжя, вулиця Базарна, 18",72,2016-04-19,1249,"Придбання, ремонт офісної техніки та програмного забезпечення (Бухгалтерські програми, Ліга.закон, домени)",Придбання офісної техніки та програмного забезпечення,389847,Центральний офіс,37279703,Україна,Ліцензія програмного забезпечення,26000368825,current,500.00,"ПП ""Діджитек""",33610315,юридична особа
РПЛ,"Київська обл., Макарівський район, Макарів",77,2016-04-06,1248,"Оренда, ремонт та обслуговування автомобілів","Оренда, ремонт та обслуговування автомобілів",389836,Центральний офіс,37279703,Україна,Оренда автомобіля,26000368825,current,3000.00,Гулак Олександр Миколайович,,фізична особа
РПЛ,"Київ, Повітрофлотський проспект, 90, 12",80,2016-04-05,1247,"Транспортні послуги (квитки, пасажирські перевезення і т.д.)","Транспортні послуги (квитки, пасажирські перевезення і т.д.)",389846,Центральний офіс,37279703,Україна,Послуги по перевезенню,26000368825,current,204900.00,"ТОВ ""Ай Ci Ес Хендлінг""",36077261,юридична особа
РПЛ,"Київ, вулиця Академіка Туполєва, 28А",61,2016-04-05,1245,Військовий збір,Податкові платежі,389845,Центральний офіс,37279703,Україна,Військовий збір,26000368825,current,69.68,УДКСУ у Шевченківському районі м. Києва,37995466,юридична особа
РПЛ,"Київ, вулиця Академіка Туполєва, 28А",63,2016-04-05,1244,Податок на доходи,Податкові платежі,389844,Центральний офіс,37279703,Україна,Податок з доходів громадян,26000368825,current,836.10,УДКСУ у Шевченківському районі м. Києва,37995466,юридична особа
РПЛ,"Київ, вулиця Академіка Туполєва, 28А",61,2016-04-05,1243,Військовий збір,Податкові платежі,389843,Центральний офіс,37279703,Україна,Військовий збір,26000368825,current,120.00,УДКСУ у Шевченківському районі м. Києва,37995466,юридична особа
РПЛ,"Київська обл., Макарівський район, Макарів",77,2016-04-05,1246,"Оренда, ремонт та обслуговування автомобілів","Оренда, ремонт та обслуговування автомобілів",389835,Центральний офіс,37279703,Україна,Оренда автомобіля,26000368825,current,739.22,Гулак Олександр Миколайович,,фізична особа
РПЛ,"Київ, вулиця Антоновича, 8",76,2016-02-02,Дор.1242,Послуги зв’язку,Послуги зв’язку,389842,Центральний офіс,37279703,Україна,Надання сеансу Відеоконференц- звʼязку,26000368825,current,100558.81,"Київська міська філія ПАТ ""Укртелеком""",01189910,юридична особа
